Workbook

Sheet 模具
A1: 序号 | B1: 资产编号 | C1: 模具编码 | D1: 物料编码 | E1: 类型 | F1: 产品（模具）名称 | G1: 对应的产品型号 | H1: 是/否通用件 | I1: 开发提出部门 | J1: 开发提出人 | K1: 模具使用部门 | M1: 产品是否要淘汰 | O1: 完成时间 | P1: 模具周期 | S1: 模具产能 | W1: 市场效果（前3年累计销量）（万套） | X1: 开模费用(元) | Y1: 累计折旧费用 | Z1: 剩余价值 | AA1: 开模厂 | AB1: 保管人 | AC1: 现阶段模具状态评价（较好/一般/较差） | AD1: 存放地点 | AE1: 备注 | AF1: 产品类型 | AG1: 内核 | AH1: 备注2 | AI1: 技术确认 | AJ1: 完成日期 | AK1: 模具重量（吨）
K2: 国内营销 | L2: 海外营销 | M2: 国内营销 | N2: 海外营销 | P2: 设计周期（年） | Q2: 已使用周期（年） | R2: 剩余可使用周期(年) | S2: 设计总产能(万) | T2: 设计日产能 | U2: 实际日产能 | V2: 已生产总量
A3: 1 | B3: 068702 | C3: NY13074 | D3: A050601002279-R0 A050601001331-R0 | E3: 塑料 | F3: V149款装饰条 | G3: VB内核 | H3: 否 | I3: 海外营销 | J3: 李景鹏 | K3: 否 | L3: 是 | M3: 淘汰 | N3: 保留 | O3: 2013-01-01 | P3: 5 | Q3: 7 | R3: 0 | S3: 50 | U3: 1920 | X3: 59829.06 | Y3: =X3-Z3 -> 56837.61 | Z3: 2991.45 | AA3: 宁一 | AB3: 注塑厂 | AC3: 一般 | AD3: 注塑车间 | AF3: C | AG3: V内核 | AJ3: 2021-11-15
A4: 2 | B4: 061694 | C4: C0939 | D4: 391220150B | E4: 塑料 | F4: 75款面板 | G4: V系列 | H4: 否 | I4: 海外营销 | J4: 李景鹏 | K4: 是 | L4: 是 | M4: 淘汰 | N4: 淘汰 | O4: 2007-01-30 | P4: 5 | Q4: 13 | R4: 0 | S4: 50 | U4: 1168 | X4: 82533.77 | Y4: 78407.08 | Z4: 4126.69 | AA4: 模具厂 | AB4: 注塑厂 | AC4: 一般 | AD4: 注塑车间 | AE4: 已申请淘汰 | AF4: C | AG4: V内核 | AJ4: 2021-11-15
A5: 3 | B5: 061695 | C5: C0940 | D5: 391260038B | E5: 塑料 | F5: 中框A模 | G5: V系列 | H5: 是 | I5: 海外营销 | J5: 李景鹏 | K5: / | L5: 是 | M5: 淘汰 | N5: 保留 | O5: 2011-06-15 | P5: 5 | Q5: 9 | R5: 0 | S5: 50 | U5: 1868 | X5: 122033.55 | Y5: 115931.87 | Z5: 6101.68 | AA5: 模具厂 | AB5: 注塑厂 | AC5: 较差 | AD5: 注塑车间 | AE5: 产品有批锋 | AF5: C | AG5: V内核 | AJ5: 2021-11-15
A6: 4 | B6: 061699 | C6: C0944 | D6: 391990247R | E6: 塑料 | F6: 螺钉盖 | G6: V系列 | H6: 是 | I6: 海外营销 | J6: 李景鹏 | K6: / | L6: 是 | M6: 淘汰 | N6: 保留 | O6: 2011-07-19 | P6: 5 | Q6: 9 | R6: 0 | S6: 50 | U6: 32914 | X6: 9044.35 | Y6: 8592.13 | Z6: 452.22 | AA6: 模具厂 | AB6: 注塑厂 | AC6: 较差 | AD6: 注塑车间 | AE6: 产品有批锋 | AF6: C | AG6: V内核 | AJ6: 2021-11-27
A7: 5 | B7: 061702 | C7: C0947 | D7: 100080036 | E7: 塑料 | F7: 2007中框盖板 | G7: V系列 | H7: 是 | I7: 海外营销 | J7: 李景鹏 | K7: / | L7: 是 | M7: 淘汰 | N7: 保留 | O7: 2009-06-17 | P7: 5 | Q7: 11 | R7: 0 | S7: 50 | U7: 13200 | X7: 9057.23 | Y7: 8604.37 | Z7: 452.86 | AA7: 模具厂 | AB7: 注塑厂 | AC7: 较差 | AD7: 注塑车间 | AE7: 产品有批锋 | AF7: C | AG7: V内核 | AI7: 大金98 | AJ7: 2021-11-20
A8: 6 | B8: 061909 | C8: C0959 | D8: 391220189B | E8: 塑料 | F8: 81款面板 | G8: V系列 | H8: 否 | I8: 海外营销 | J8: 李景鹏 | K8: 是 | L8: 是 | M8: 淘汰 | N8: 淘汰 | O8: 2011-07-30 | P8: 5 | Q8: 9 | R8: 0 | S8: 50 | U8: 1570 | X8: 81226.55 | Y8: 77165.22 | Z8: 4061.33 | AA8: 模具厂 | AB8: 注塑厂 | AC8: 较差 | AD8: 注塑车间 | AE8: 已申请淘汰 | AF8: C | AG8: V内核 | AJ8: 2021-11-26
A9: 7 | B9: 061912 | C9: C0972 | D9: 391220182B | E9: 塑料 | F9: 59款装饰条 | G9: V系列 | H9: 否 | I9: 海外营销 | J9: 李景鹏 | K9: 否 | L9: 否 | M9: 淘汰 | N9: 保留 | O9: 2013-07-05 | P9: 5 | Q9: 7 | R9: 0 | S9: 50 | U9: / | X9: 21973.32 | Y9: 20874.65 | Z9: 1098.67 | AA9: 模具厂 | AB9: 注塑厂 | AC9: 一般 | AD9: 注塑车间 | AE9: 已申请淘汰 | AF9: C | AG9: V内核 | AJ9: 2021-11-17
A10: 8 | B10: 061913 | C10: C0973 | D10: 391220209B | E10: 塑料 | F10: 85款面板 | G10: V系列 | H10: 否 | I10: 海外营销 | J10: 李景鹏 | K10: 是 | L10: 是 | M10: 淘汰 | N10: 淘汰 | O10: 2008-05-19 | P10: 5 | Q10: 12 | R10: 0 | S10: 50 | U10: 1570 | X10: 98506.19 | Y10: 93580.88 | Z10: 4925.31 | AA10: 模具厂 | AB10: 注塑厂 | AC10: 较差 | AD10: 注塑车间 | AE10: 已申请淘汰 | AF10: C | AG10: V内核 | AJ10: 2021-11-11
A11: 9 | B11: 062140 | C11: C0966 | D11: 391220191B A050601001565-R0 | E11: 塑料 | F11: V50款面板 | G11: V系列 | H11: 否 | I11: 海外营销 | J11: 李景鹏 | K11: 是 | L11: 是 | M11: 淘汰 | N11: 淘汰 | O11: 2011-12-03 | P11: 5 | Q11: 9 | R11: 0 | S11: 50 | U11: 1372 | X11: 99276.53 | Y11: 94312.70 | Z11: 4963.83 | AA11: 模具厂 | AB11: 注塑厂 | AC11: 较差 | AD11: 注塑车间 | AE11: 已申请淘汰 | AF11: C | AG11: V内核 | AJ11: 2021-12-07 | AK11: =3926/1000 -> 3.926
A12: 10 | B12: 062141 | C12: C0967 | D12: 391220192B | E12: 塑料 | F12: 77款面板 | G12: V系列 | H12: 否 | I12: 海外营销 | J12: 李景鹏 | K12: 否 | L12: 是 | M12: 淘汰 | N12: 淘汰 | O12: 2011-12-03 | P12: 5 | Q12: 9 | R12: 0 | S12: 50 | U12: 1630 | X12: 95089.82 | Y12: 90335.33 | Z12: 4754.49 | AA12: 模具厂 | AB12: 注塑厂 | AC12: 较差 | AD12: 注塑车间 | AE12: 已申请淘汰 | AF12: C | AG12: V内核 | AJ12: 2021-11-17 | AK12: 3.678
A13: 11 | B13: 062205 | C13: C1089 | D13: 391220263B | E13: 塑料 | F13: 2007/96款面板 | G13: V系列 | H13: 否 | I13: 海外营销 | J13: 李景鹏 | K13: 是 | L13: 是 | M13: 淘汰 | N13: 淘汰 | O13: 2008-05-19 | P13: 5 | Q13: 12 | R13: 0 | S13: 50 | U13: 1630 | X13: 100582.96 | Y13: 95553.81 | Z13: 5029.15 | AA13: 模具厂 | AB13: 注塑厂 | AC13: 较差 | AD13: 注塑车间 | AE13: 已申请淘汰 | AF13: C | AG13: V内核 | AJ13: 2021-11-16 | AK13: =3500/1000 -> 3.5
A14: 12 | B14: 062230 | C14: C1039 | D14: 391220227B | E14: 塑料 | F14: V92款面板 | G14: V系列 | H14: 否 | I14: 海外营销 | J14: 李景鹏 | K14: 否 | L14: 否 | M14: 淘汰 | N14: 淘汰 | O14: 2011-05-18 | P14: 5 | Q14: 9 | R14: 0 | S14: 50 | U14: / | X14: 106747.88 | Y14: 101410.49 | Z14: 5337.39 | AA14: 模具厂 | AB14: 注塑厂 | AC14: 较差 | AD14: 注塑车间 | AE14: 产品有批锋 | AF14: C | AG14: V内核 | AJ14: 2021-11-20
A15: 13 | B15: 062279 | C15: C1095 | D15: A050961000015-R0 | E15: 塑料 | F15: 大金2007中框C模 | G15: V系列 | H15: 是 | I15: 海外营销 | J15: 李景鹏 | K15: / | L15: 是 | M15: 淘汰 | N15: 保留 | O15: 2011-07-19 | P15: 5 | Q15: 9 | R15: 0 | S15: 50 | U15: 1570 | X15: 165380.16 | Y15: 157111.15 | Z15: 8269.01 | AA15: 模具厂 | AB15: 注塑厂 | AC15: 较差 | AD15: 注塑车间 | AE15: 产品有批锋 | AF15: C | AG15: V内核 | AJ15: 2022-01-04
A16: 14 | B16: 062287 | C16: C1062 | D16: 391220251B | E16: 塑料 | F16: 2007-93款面板 | G16: V系列 | H16: 否 | I16: 海外营销 | J16: 李景鹏 | K16: 否 | L16: 是 | M16: 淘汰 | N16: 淘汰 | O16: 2006-06-15 | P16: 5 | Q16: 14 | R16: 0 | S16: 50 | U16: 1464 | X16: 114602.04 | Y16: 108871.94 | Z16: 5730.10 | AA16: 模具厂 | AB16: 注塑厂 | AC16: 较差 | AD16: 注塑车间 | AE16: 已申请淘汰 | AF16: C | AG16: V内核 | AJ16: 2021-11-27
A17: 15 | B17: 062312 | C17: C1122 | D17: A050938001315-R0 | E17: 塑料 | F17: 大金2007 95款面板 | G17: V系列 | H17: 否 | I17: 海外营销 | J17: 李景鹏 | K17: 否 | L17: 是 | M17: 淘汰 | N17: 淘汰 | O17: 2006-06-21 | P17: 5 | Q17: 14 | R17: 0 | S17: 50 | U17: 1542 | X17: 123154.6 | Y17: 116996.87 | Z17: 6157.73 | AA17: 模具厂 | AB17: 注塑厂 | AC17: 一般 | AD17: 注塑车间 | AE17: 已申请淘汰 | AF17: C | AG17: V内核 | AJ17: 2021-12-10
A18: 16 | B18: 062392 | C18: TS80267 | D18: 391220270B | E18: 塑料 | F18: 94款面板 | G18: V系列 | H18: 否 | I18: 海外营销 | J18: 李景鹏 | K18: 是 | L18: 是 | M18: 淘汰 | N18: 淘汰 | O18: 2008-05-19 | P18: 5 | Q18: 12 | R18: 0 | S18: 50 | U18: 1570 | X18: 129914.53 | Y18: 123418.80 | Z18: 6495.73 | AA18: 汇科 | AB18: 注塑厂 | AC18: 较差 | AD18: 注塑车间 | AE18: 已申请淘汰 | AF18: C | AG18: V内核 | AJ18: 2021-12-01
A19: 17 | B19: 064928 | C19: C1244 | D19: 391220428R | E19: 塑料 | F19: 104款面板 | G19: V系列 | H19: 否 | I19: 海外营销 | J19: 李景鹏 | K19: 是 | L19: 是 | M19: 淘汰 | N19: 淘汰 | O19: 2008-05-19 | P19: 5 | Q19: 12 | R19: 0 | S19: 50 | U19: 1416 | X19: 106034.64 | Y19: 100732.91 | Z19: 5301.73 | AA19: 模具厂 | AB19: 注塑厂 | AC19: 较差 | AD19: 注塑车间 | AE19: 已申请淘汰 | AF19: C | AG19: V内核 | AJ19: 2021-11-10
A20: 18 | B20: 064929 | C20: C1245 | D20: 391220365R | E20: 塑料 | F20: 104款装饰条 | G20: V系列 | H20: 否 | I20: 海外营销 | J20: 李景鹏 | K20: 是 | L20: 是 | M20: 淘汰 | N20: 保留 | O20: 2008-05-19 | P20: 5 | Q20: 12 | R20: 0 | S20: 50 | U20: 2010 | X20: 48083.57 | Y20: 45679.39 | Z20: 2404.18 | AA20: 模具厂 | AB20: 注塑厂 | AC20: 较差 | AD20: 注塑车间 | AE20: 已申请淘汰 | AF20: C | AG20: V内核 | AJ20: 2021-12-10
A21: 19 | B21: 064930 | C21: C1251 | D21: 391220338R | E21: 塑料 | F21: V105款面板 | G21: V系列 | H21: 否 | I21: 海外营销 | J21: 李景鹏 | K21: 否 | L21: 是 | M21: 淘汰 | N21: 淘汰 | O21: 2012-09-05 | P21: 5 | Q21: 8 | R21: 0 | S21: 50 | U21: 1490 | X21: 80073.61 | Y21: 76069.93 | Z21: 4003.68 | AA21: 模具厂 | AB21: 注塑厂 | AC21: 一般 | AD21: 注塑车间 | AE21: 已申请淘汰 | AF21: C | AG21: V内核 | AJ21: 2021-11-09
A22: 20 | B22: 065010 | C22: CG/A040109 | D22: 391220402R | E22: 塑料 | F22: V108款面板 | G22: V系列 | H22: 否 | I22: 海外营销 | J22: 李景鹏 | K22: 否 | L22: 是 | M22: 淘汰 | N22: 淘汰 | O22: 2012-09-20 | P22: 5 | Q22: 8 | R22: 0 | S22: 50 | U22: 1764 | X22: 89743.59 | Y22: 85256.41 | Z22: 4487.18 | AA22: 诚丰 | AB22: 注塑厂 | AC22: 一般 | AD22: 注塑车间 | AE22: 已申请淘汰 | AF22: C | AG22: V内核 | AJ22: 2021-11-11 | AK22: 2.55
A23: 21 | B23: 065350 | C23: C1149 | D23: 391220282B | E23: 塑料 | F23: 98款面板 | G23: V系列 | H23: 否 | I23: 海外营销 | J23: 李景鹏 | K23: 否 | L23: 是 | M23: 淘汰 | N23: 淘汰 | O23: 2008-05-19 | P23: 5 | Q23: 12 | R23: 0 | S23: 50 | U23: 1394 | X23: 170370.37 | Y23: 161851.85 | Z23: 8518.52 | AA23: 模具厂 | AB23: 注塑厂 | AC23: 较差 | AD23: 注塑车间 | AE23: 已申请淘汰 | AF23: C | AG23: V内核 | AJ23: 2021-12-09 | AK23: =3800/1000 -> 3.8
A24: 22 | B24: 065363 | C24: C1277 | D24: A050601000314-R0 | E24: 塑料 | F24: V106款面板 | G24: V系列 | H24: 否 | I24: 海外营销 | J24: 李景鹏 | K24: 否 | L24: 是 | M24: 淘汰 | N24: 淘汰 | O24: 2010-08-20 | P24: 5 | Q24: 10 | R24: 0 | S24: 50 | U24: 1416 | X24: 91495.33 | Y24: 86920.56 | Z24: 4574.77 | AA24: 模具厂 | AB24: 注塑厂 | AC24: 较差 | AD24: 注塑车间 | AE24: 已申请淘汰 | AF24: C | AG24: V内核 | AJ24: 2021-11-17
A25: 23 | B25: 066104 | C25: C1355 | D25: 391220419R | E25: 塑料 | F25: V110款面板 | G25: V系列 | H25: 否 | I25: 海外营销 | J25: 李景鹏 | K25: 否 | L25: 是 | M25: 淘汰 | N25: 淘汰 | O25: 2012-09-05 | P25: 5 | Q25: 8 | R25: 0 | S25: 50 | U25: 1800 | X25: 108051.42 | Y25: 102648.85 | Z25: 5402.57 | AA25: 模具厂 | AB25: 注塑厂 | AC25: 一般 | AD25: 注塑车间 | AE25: 已申请淘汰 | AF25: C | AG25: V内核 | AJ25: 2021-11-11
A26: 24 | B26: 066349 | C26: C1282 | D26: A050601000122-R0 | E26: 塑料 | F26: V107款面板 | G26: V系列 | H26: 否 | I26: 海外营销 | J26: 李景鹏 | K26: 是 | L26: 是 | M26: 淘汰 | N26: 淘汰 | O26: 2014-01-01 | P26: 5 | Q26: 6 | R26: 0 | S26: 80 | U26: 1490 | X26: 85225.33 | Y26: 80964.06 | Z26: 4261.27 | AA26: 模具厂 | AB26: 注塑厂 | AC26: 一般 | AD26: 注塑车间 | AE26: 已申请淘汰 | AF26: C | AG26: V内核 | AJ26: 2021-11-18 | AK26: 3.5
A27: 25 | B27: 066816 | C27: C1433 | D27: 391220548R | E27: 塑料 | F27: V117款面板 | G27: V系列 | H27: 否 | I27: 海外营销 | J27: 李景鹏 | K27: 是 | L27: 是 | M27: 淘汰 | N27: 淘汰 | O27: 2010-01-01 | P27: 5 | Q27: 10 | R27: 0 | S27: 50 | U27: 1646 | X27: 121397.12 | Y27: 115327.26 | Z27: 6069.86 | AA27: 模具厂 | AB27: 注塑厂 | AC27: 较差 | AD27: 注塑车间 | AE27: 已申请淘汰 | AF27: C | AG27: V内核 | AJ27: 2021-12-29
A28: 26 | B28: 066823 | C28: C1449 | D28: 391220547R | E28: 塑料 | F28: V116款面板 | G28: V系列 | H28: 否 | I28: 海外营销 | J28: 李景鹏 | K28: 否 | L28: 否 | M28: 淘汰 | N28: 淘汰 | O28: 2014-01-01 | P28: 5 | Q28: 6 | R28: 0 | S28: 80 | U28: / | X28: 110183.23 | Y28: 104674.07 | Z28: 5509.16 | AA28: 模具厂 | AB28: 注塑厂 | AC28: 一般 | AD28: 注塑车间 | AE28: 已申请淘汰 | AF28: C | AG28: V内核 | AJ28: 2021-11-10
A29: 27 | B29: 066927 | C29: CG/A040810 | D29: 391220574R | E29: 塑料 | F29: V119款面板 | G29: V系列 | H29: 否 | I29: 海外营销 | J29: 李景鹏 | K29: 是 | L29: 是 | M29: 淘汰 | N29: 淘汰 | O29: 2010-07-19 | P29: 5 | Q29: 10 | R29: 0 | S29: 50 | U29: 1394 | X29: 118803.42 | Y29: 112863.25 | Z29: 5940.17 | AA29: 诚丰 | AB29: 注塑厂 | AC29: 较差 | AD29: 注塑车间 | AE29: 已申请淘汰 | AF29: C | AG29: V内核 | AJ29: 2021-11-12
A30: 28 | B30: 066931 | C30: CG/A041210 | D30: 391230510R | E30: 塑料 | F30: 119款装饰条 | G30: V系列 | H30: 否 | I30: 海外营销 | J30: 李景鹏 | K30: 是 | L30: 是 | M30: 淘汰 | N30: 保留 | O30: 2010-01-01 | P30: 5 | Q30: 10 | R30: 0 | S30: 50 | U30: 4282 | X30: 21367.52 | Y30: 20299.14 | Z30: 1068.38 | AA30: 诚丰 | AB30: 注塑厂 | AC30: 较差 | AD30: 注塑车间 | AE30: 已申请淘汰 | AF30: C | AG30: V内核 | AJ30: 2021-12-15
A31: 29 | B31: 066936 | C31: CG/A040110 | D31: 391220573R | E31: 塑料 | F31: V118款面板 | G31: V系列 | H31: 否 | I31: 海外营销 | J31: 李景鹏 | K31: 是 | L31: 是 | M31: 淘汰 | N31: 淘汰 | O31: 2010-07-19 | P31: 5 | Q31: 10 | R31: 0 | S31: 50 | U31: 1570 | X31: 120512.82 | Y31: 114487.18 | Z31: 6025.64 | AA31: 诚丰 | AB31: 注塑厂 | AC31: 较差 | AD31: 注塑车间 | AE31: 已申请淘汰 | AF31: C | AG31: V内核 | AJ31: 2021-11-16
A32: 30 | B32: 067256 | C32: C1441 | D32: A050601000333-R0 | E32: 塑料 | F32: V115款面板 | G32: V系列 | H32: 否 | I32: 海外营销 | J32: 李景鹏 | K32: 否 | L32: 是 | M32: 淘汰 | N32: 淘汰 | O32: 2011-07-30 | P32: 5 | Q32: 9 | R32: 0 | S32: 50 | U32: 1416 | X32: 143288.42 | Y32: 136124.00 | Z32: 7164.42 | AA32: 模具厂 | AB32: 注塑厂 | AC32: 较差 | AD32: 注塑车间 | AE32: 已申请淘汰 | AF32: C | AG32: V内核 | AJ32: 2021-12-09
A33: 31 | B33: 067260 | C33: C1445 | D33: A050601000162-R0 | E33: 塑料 | F33: V115款装饰条 | G33: V系列 | H33: 否 | I33: 海外营销 | J33: 李景鹏 | K33: 否 | L33: 是 | M33: 淘汰 | N33: 保留 | O33: 2010-05-18 | P33: 5 | Q33: 10 | R33: 0 | S33: 50 | U33: 2216 | X33: 48592.13 | Y33: 46162.52 | Z33: 2429.61 | AA33: 模具厂 | AB33: 注塑厂 | AC33: 较差 | AD33: 注塑车间 | AE33: 已申请淘汰 | AF33: C | AG33: V内核 | AJ33: 2021-11-23
A34: 32 | B34: 067318 | C34: K01552 | D34: A050601000121-R0 | E34: 塑料 | F34: V123款面板 | G34: V系列 | H34: 否 | I34: 海外营销 | J34: 李景鹏 | K34: 是 | L34: 是 | M34: 淘汰 | N34: 淘汰 | O34: 2010-05-18 | P34: 5 | Q34: 10 | R34: 0 | S34: 50 | U34: 1416 | X34: 119658.12 | Y34: 113675.21 | Z34: 5982.91 | AA34: 科智 | AB34: 注塑厂 | AC34: 较差 | AD34: 注塑车间 | AE34: 已申请淘汰 | AF34: C | AG34: V内核 | AJ34: 2021-11-25
A35: 33 | B35: 067325 | C35: K01559 | D35: 391230511B | E35: 塑料 | F35: V123款装饰条 | G35: V系列 | H35: 否 | I35: 海外营销 | J35: 李景鹏 | K35: 是 | L35: 是 | M35: 淘汰 | N35: 保留 | O35: 2010-01-01 | P35: 5 | Q35: 10 | R35: 0 | S35: 50 | U35: 1964 | X35: 59829.06 | Y35: 56837.61 | Z35: 2991.45 | AA35: 科智 | AB35: 注塑厂 | AC35: 较差 | AD35: 注塑车间 | AE35: 已申请淘汰 | AF35: C | AG35: V内核 | AJ35: 2021-11-17
A36: 34 | B36: 067491 | C36: C1508 | D36: 1050601000038-R0 | E36: 塑料 | F36: V46款面板 | G36: V系列 | H36: 否 | I36: 海外营销 | J36: 李景鹏 | K36: 是 | L36: 否 | M36: 淘汰 | N36: 淘汰 | O36: 2009-07-04 | P36: 5 | Q36: 11 | R36: 0 | S36: 50 | U36: / | X36: 136173.21 | Y36: 129364.55 | Z36: 6808.66 | AA36: 模具厂 | AB36: 注塑厂 | AC36: 较差 | AD36: 注塑车间 | AE36: 已申请淘汰 | AF36: C | AG36: V内核 | AJ36: 2021-11-26
A37: 35 | B37: 067493 | C37: C1529 | D37: A050601000086-R0 | E37: 塑料 | F37: V128款面板 | G37: V系列 | H37: 否 | I37: 海外营销 | J37: 李景鹏 | K37: 否 | L37: 是 | M37: 淘汰 | N37: 淘汰 | O37: 2011-11-05 | P37: 5 | Q37: 9 | R37: 0 | S37: 50 | U37: / | X37: 123960.48 | Y37: 117762.46 | Z37: 6198.02 | AA37: 模具厂 | AB37: 注塑厂 | AC37: 较差 | AD37: 注塑车间 | AE37: 已申请淘汰 | AF37: C | AG37: V内核 | AJ37: 2021-11-23
A38: 36 | B38: 067850 | C38: C1592 | D38: A050601000468-R0 | E38: 塑料 | F38: V123款装饰条B模 | G38: V系列 | H38: 否 | I38: 海外营销 | J38: 李景鹏 | K38: 是 | L38: 是 | M38: 淘汰 | N38: 保留 | O38: 2011-08-05 | P38: 5 | Q38: 9 | R38: 0 | S38: 50 | U38: 1416 | X38: 66898.73 | Y38: 63553.79 | Z38: 3344.94 | AA38: 模具厂 | AB38: 注塑厂 | AC38: 较差 | AD38: 注塑车间 | AE38: 已申请淘汰 | AF38: C | AG38: V内核 | AJ38: 2021-12-08
A39: 37 | B39: 068343 | C39: CG/A010212 | D39: A050601000609-R0 | E39: 塑料 | F39: V127款中框 | G39: V系列 | H39: 否 | I39: 海外营销 | J39: 李景鹏 | K39: 否 | L39: 是 | M39: 淘汰 | N39: 保留 | O39: 2012-01-19 | P39: 5 | Q39: 8 | R39: 0 | S39: 50 | U39: 1570 | X39: 217948.72 | Y39: 207051.28 | Z39: 10897.44 | AA39: 诚丰 | AB39: 注塑厂 | AC39: 一般 | AD39: 注塑车间 | AE39: 已申请淘汰 | AF39: C | AG39: V内核 | AJ39: 2022-01-10
A40: 38 | B40: 068344 | C40: CG/A010112 | D40: A050601000606-R0 | E40: 塑料 | F40: V127款面板 | G40: V系列 | H40: 否 | I40: 海外营销 | J40: 李景鹏 | K40: 否 | L40: 是 | M40: 淘汰 | N40: 淘汰 | O40: 2011-12-03 | P40: 5 | Q40: 9 | R40: 0 | S40: 50 | U40: 1310 | X40: 108547.01 | Y40: 103119.66 | Z40: 5427.35 | AA40: 诚丰 | AB40: 注塑厂 | AC40: 较差 | AD40: 注塑车间 | AE40: 已申请淘汰 | AF40: C | AG40: V内核 | AJ40: 2021-11-17
A41: 39 | B41: 068345 | C41: CG/A010312 | D41: A050966000015-R0 | E41: 塑料 | F41: V127款导风条 | G41: V系列 | H41: 否 | I41: 海外营销 | J41: 李景鹏 | K41: 否 | L41: 是 | M41: 淘汰 | N41: 保留 | O41: 2011-08-20 | P41: 5 | Q41: 9 | R41: 0 | S41: 50 | U41: 2880 | X41: 65811.97 | Y41: 62521.37 | Z41: 3290.60 | AA41: 诚丰 | AB41: 注塑厂 | AC41: 较差 | AD41: 注塑车间 | AE41: 已申请淘汰 | AF41: C | AG41: V内核 | AJ41: 2021-12-23
A42: 40 | B42: 068346 | C42: CG/A010412 | D42: A050601000909-R0 A050601000603-R0 | E42: 塑料 | F42: V127款左右侧板 | G42: V系列 | H42: 否 | I42: 海外营销 | J42: 李景鹏 | K42: 否 | L42: 是 | M42: 淘汰 | N42: 保留 | O42: 2011-08-20 | P42: 5 | Q42: 9 | R42: 0 | S42: 50 | U42: 2400 | X42: 35042.74 | Y42: 33290.60 | Z42: 1752.14 | AA42: 诚丰 | AB42: 注塑厂 | AC42: 较差 | AD42: 注塑车间 | AE42: 已申请淘汰 | AF42: C | AG42: V内核 | AJ42: 2021-12-06
A43: 41 | B43: 068350 | C43: CG/A030211 | D43: A050605000016-R0 | E43: 塑料 | F43: V124款中框 | G43: V系列 | H43: 是 | I43: 海外营销 | J43: 李景鹏 | K43: 否 | L43: 是 | M43: 淘汰 | N43: 保留 | O43: 2011-06-15 | P43: 5 | Q43: 9 | R43: 0 | S43: 50 | U43: 1464 | X43: 245299.15 | Y43: 233034.19 | Z43: 12264.96 | AA43: 诚丰 | AB43: 注塑厂 | AC43: 较差 | AD43: 注塑车间 | AE43: 已申请淘汰 | AF43: C | AG43: V内核 | AJ43: 2021-11-23
A44: 42 | B44: 068351 | C44: CG/A030411 | D44: A050601000254-R0 | E44: 塑料 | F44: V124款面板 | G44: V系列 | H44: 否 | I44: 海外营销 | J44: 李景鹏 | K44: 否 | L44: 是 | M44: 淘汰 | N44: 淘汰 | O44: 2011-07-17 | P44: 5 | Q44: 9 | R44: 0 | S44: 50 | U44: 1416 | X44: 158119.66 | Y44: 150213.68 | Z44: 7905.98 | AA44: 诚丰 | AB44: 注塑厂 | AC44: 较差 | AD44: 注塑车间 | AE44: 已申请淘汰 | AF44: C | AG44: V内核 | AJ44: 2021-11-30 | AK44: =3260/1000 -> 3.26
A45: 43 | B45: 068405 | C45: C1738 | D45: A050601000799-R0 | E45: 塑料 | F45: V136款装饰板 | G45: V系列 | H45: 否 | I45: 海外营销 | J45: 李景鹏 | K45: 是 | L45: 是 | M45: 淘汰 | N45: 保留 | O45: 2013-01-01 | P45: 5 | Q45: 7 | R45: 0 | S45: 50 | U45: 1964 | X45: 16096.28 | Y45: 15291.47 | Z45: 804.81 | AA45: 模具厂 | AB45: 注塑厂 | AC45: 一般 | AD45: 注塑车间 | AE45: 已申请淘汰 | AF45: C | AG45: V内核 | AJ45: 2021-12-07
A46: 44 | B46: 068420 | C46: C1734 | D46: A050601000813-R0 | E46: 塑料 | F46: V138款面板 | G46: V系列 | H46: 否 | I46: 海外营销 | J46: 李景鹏 | K46: 否 | L46: 是 | M46: 淘汰 | N46: 淘汰 | O46: 2013-01-01 | P46: 5 | Q46: 7 | R46: 0 | S46: 50 | U46: 1728 | X46: 129188.03 | Y46: 122728.63 | Z46: 6459.40 | AA46: 模具厂 | AB46: 注塑厂 | AC46: 一般 | AD46: 注塑车间 | AF46: C | AG46: V内核 | AJ46: 2021-11-16
A47: 45 | B47: 068430 | C47: C1726 | D47: A050601000783-R0 A050938000435-R0 | E47: 塑料 | F47: V137款面板 | G47: V系列 | H47: 否 | I47: 海外营销 | J47: 李景鹏 | K47: 否 | L47: 是 | M47: 淘汰 | N47: 淘汰 | O47: 2013-09-05 | P47: 5 | Q47: 7 | R47: 0 | S47: 50 | U47: 1394 | X47: 121378.97 | Y47: 115310.02 | Z47: 6068.95 | AA47: 模具厂 | AB47: 注塑厂 | AC47: 一般 | AD47: 注塑车间 | AF47: C | AG47: V内核 | AJ47: 2021-11-16
A48: 46 | B48: 068431 | C48: C1727 | D48: A050601000782-R0 | E48: 塑料 | F48: V137款装饰板 | G48: V系列 | H48: 否 | I48: 海外营销 | J48: 李景鹏 | K48: 否 | L48: 是 | M48: 淘汰 | N48: 保留 | O48: 2013-01-01 | P48: 5 | Q48: 7 | R48: 0 | S48: 50 | U48: 1964 | X48: 43989.26 | Y48: 41789.80 | Z48: 2199.46 | AA48: 模具厂 | AB48: 注塑厂 | AC48: 一般 | AD48: 注塑车间 | AF48: C | AG48: V内核 | AJ48: 2021-11-17
A49: 47 | B49: 068463 | C49: 1W060043A | D49: A050601001254-B0 | E49: 塑料 | F49: V151款装饰条 | G49: V系列 | H49: 否 | I49: 海外营销 | J49: 李景鹏 | K49: 否 | L49: 是 | M49: 淘汰 | N49: 保留 | O49: 2013-01-01 | P49: 5 | Q49: 7 | R49: 0 | S49: 50 | U49: 4950 | X49: 29914.53 | Y49: 28418.80 | Z49: 1495.73 | AA49: 顺威 | AB49: 注塑厂 | AC49: 一般 | AD49: 注塑车间 | AF49: C | AG49: V内核 | AJ49: 2022-01-07
A50: 48 | B50: 068698 | C50: NY13070 | D50: A050601001398-R0 | E50: 塑料 | F50: V146款面板 | G50: V系列 | H50: 否 | I50: 海外营销 | J50: 李景鹏 | K50: 否 | L50: 是 | M50: 淘汰 | N50: 淘汰 | O50: 2010-08-20 | P50: 5 | Q50: 10 | R50: 0 | S50: 50 | U50: 1462 | X50: 188034.18 | Y50: 178632.47 | Z50: 9401.71 | AA50: 宁一 | AB50: 注塑厂 | AC50: 较差 | AD50: 注塑车间 | AE50: 已申请淘汰 | AF50: C | AG50: V内核 | AJ50: 2022-01-11
A51: 49 | B51: 068781 | C51: CG/A020112 | D51: A050601000732-R0 | E51: 塑料 | F51: V133款面板 | G51: V系列 | H51: 否 | I51: 海外营销 | J51: 李景鹏 | K51: 否 | L51: 是 | M51: 淘汰 | N51: 淘汰 | O51: 2013-01-01 | P51: 5 | Q51: 7 | R51: 0 | S51: 50 | U51: / | X51: 102564.1 | Y51: 97435.89 | Z51: 5128.21 | AA51: 诚丰 | AB51: 注塑厂 | AC51: 一般 | AD51: 注塑车间 | AE51: 已申请淘汰 | AF51: C | AG51: V内核 | AJ51: 2021-12-01
A52: 50 | B52: 069621 | C52: C1723 | D52: A050601000786-R0 | E52: 塑料 | F52: V系列135款面板 | G52: V系列 | H52: 否 | I52: 海外营销 | J52: 李景鹏 | K52: 否 | L52: 是 | M52: 淘汰 | N52: 淘汰 | O52: 2013-07-13 | P52: 5 | Q52: 7 | R52: 0 | S52: 50 | U52: / | X52: 170086.3 | Y52: 142730.59 | Z52: 27355.71 | AA52: 模具厂 | AB52: 注塑厂 | AC52: 一般 | AD52: 注塑车间 | AF52: C | AG52: V内核 | AJ52: 2021-11-18
A53: 51 | B53: 065011 | C53: CG/A040209 | D53: 391220360R | E53: 塑料 | F53: V108款装饰条 | G53: V系列 | H53: 否 | I53: 海外营销 | J53: 李景鹏 | K53: 否 | L53: 是 | M53: 淘汰 | N53: 保留 | O53: 2010-08-20 | P53: 5 | Q53: 10 | R53: 0 | S53: 50 | U53: 1570 | X53: 42735.04 | Y53: 40598.29 | Z53: 2136.75 | AA53: 诚丰 | AB53: 注塑厂 | AC53: 较差 | AD53: 注塑车间 | AE53: 已申请淘汰 | AF53: C | AG53: V内核 | AJ53: 2021-11-19
A54: 52 | B54: 062021 | C54: CG/A120207 | D54: 391220194B | E54: 塑料 | F54: 79款装饰条 | G54: V系列 | H54: 否 | I54: 海外营销 | J54: / | K54: 否 | L54: 是 | M54: 淘汰 | N54: 保留 | O54: 2008-01-01 | P54: 5 | Q54: 12 | R54: 0 | S54: 50 | U54: 1320 | X54: 109300 | Y54: 103835.00 | Z54: 5465.00 | AA54: 诚丰 | AB54: 注塑厂 | AC54: 较差 | AD54: 注塑车间 | AE54: 已申请淘汰 | AF54: C | AG54: V内核 | AJ54: 2021-12-09
A55: 53 | B55: 062020 | C55: CG/A120107 | D55: 391220193R | E55: 塑料 | F55: V79款面板 | G55: V系列 | H55: 否 | I55: 海外营销 | J55: 李景鹏 | K55: 否 | L55: 是 | M55: 淘汰 | N55: 淘汰 | O55: 2008-01-01 | P55: 5 | Q55: 12 | R55: 0 | S55: 50 | U55: 1252 | X55: 175800 | Y55: 167010.00 | Z55: 8790.00 | AA55: 诚丰 | AB55: 注塑厂 | AC55: 较差 | AD55: 注塑车间 | AE55: 已申请淘汰 | AF55: C | AG55: V内核 | AJ55: 2021-11-20
A56: 54 | B56: 069669 | C56: C1861 | D56: A050601000116-R0 | E56: 塑料 | F56: 2007螺钉盖B模 | G56: V系列 | H56: 是 | I56: 海外营销 | J56: 李景鹏 | K56: / | L56: 是 | M56: 淘汰 | N56: 保留 | O56: 2014-02-08 | P56: 5 | Q56: 6 | R56: 0 | S56: 80 | U56: 32914 | X56: 26570.78 | Y56: 22297.10 | Z56: 4273.68 | AA56: 模具厂 | AB56: 注塑厂 | AC56: 一般 | AD56: 注塑车间 | AF56: C | AG56: V内核 | AJ56: 2021-12-07
A57: 55 | B57: 067859 | C57: C1669 | D57: A050601000116-R0 | E57: 塑料 | F57: 螺钉盖B模 | G57: V系列 | M57: 淘汰 | N57: 保留 | O57: 2012-07-10 | P57: 5 | Q57: 8 | R57: 0 | S57: 50 | X57: 20677.97 | Y57: 19644.07 | Z57: 1033.90 | AA57: 志高 | AB57: 注塑厂 | AC57: 一般 | AD57: 注塑车间 | AF57: C | AG57: V内核 | AJ57: 2021-12-27
A58: 56 | B58: 061707 | C58: C0964 | D58: 391220295B | E58: 塑料 | F58: 84款面板 | G58: V系列 | H58: 否 | I58: 海外营销 | J58: 李景鹏 | K58: 否 | L58: 是 | M58: 淘汰 | N58: 淘汰 | O58: 2008-06-26 | P58: 5 | Q58: 12 | R58: 0 | S58: 50 | U58: / | X58: 86323.74 | Y58: 82007.55 | Z58: 4316.19 | AA58: 模具厂 | AB58: 注塑厂 | AC58: 较差 | AD58: 注塑车间 | AE58: 已获批准淘汰报废 | AF58: C | AG58: V内核 | AJ58: 2021-11-08
A59: 57 | B59: 066815 | C59: C1432 | D59: 391990316R | E59: 塑料 | F59: 77款镜片 | G59: V系列 | H59: =VLOOKUP(B59,[1]采购中心!$C$1:$I$65536,7,0) -> 否 | I59: =VLOOKUP(B59,[1]采购中心!$C$1:$J$65536,8,0) -> 海外营销 | J59: =VLOOKUP(B59,[1]采购中心!$C$1:$K$65536,9,0) -> 李景鹏 | M59: 淘汰 | N59: 保留 | O59: 2010-08-16 | P59: 5 | Q59: 10 | R59: 0 | S59: 50 | X59: 8989.57 | Y59: =X59-Z59 -> 8540.09 | Z59: 449.48 | AA59: 志高 | AB59: 注塑厂 | AC59: 一般 | AD59: 注塑车间 | AE59: 已申请淘汰 | AF59: C | AG59: V内核 | AJ59: 2021-11-10 | AK59: =115/1000 -> 0.115
A60: 58 | B60: 066940 | C60: CG/A040510 | D60: 391220561R | E60: 塑料 | F60: V118款镜片 | G60: V系列 | H60: =VLOOKUP(B60,[1]采购中心!$C$1:$I$65536,7,0) -> 否 | I60: =VLOOKUP(B60,[1]采购中心!$C$1:$J$65536,8,0) -> 海外营销 | J60: =VLOOKUP(B60,[1]采购中心!$C$1:$K$65536,9,0) -> 李景鹏 | M60: 淘汰 | N60: 保留 | O60: 2010-10-16 | P60: 5 | Q60: 10 | R60: 0 | S60: 50 | X60: 18803.42 | Y60: 17863.25 | Z60: 940.17 | AA60: 诚丰 | AB60: 注塑厂 | AC60: 一般 | AD60: 注塑车间 | AF60: C | AG60: V内核 | AJ60: 2021-11-10 | AK60: =135/1000 -> 0.135
A61: 59 | B61: 068468 | C61: 1W060044A | D61: A050601001255-R0 | E61: 塑料 | F61: V151款电镀条 | G61: V系列 | H61: =VLOOKUP(B61,[1]采购中心!$C$1:$I$65536,7,0) -> 否 | I61: =VLOOKUP(B61,[1]采购中心!$C$1:$J$65536,8,0) -> 海外营销 | J61: =VLOOKUP(B61,[1]采购中心!$C$1:$K$65536,9,0) -> 李景鹏 | M61: 淘汰 | N61: 保留 | O61: 2013-05-25 | P61: 5 | Q61: 7 | R61: 0 | S61: 50 | X61: 28205.13 | Y61: 26794.87 | Z61: 1410.26 | AA61: 顺威 | AB61: 注塑厂 | AC61: 一般 | AD61: 注塑车间 | AE61: 已申请淘汰 | AF61: C | AG61: V内核 | AJ61: 2021-11-10 | AK61: =230/1000 -> 0.23
A62: 60 | B62: 066820 | C62: C1437 | D62: 391990320R | E62: 塑料 | F62: 117款镜片 | G62: V系列 | H62: =VLOOKUP(B62,[1]采购中心!$C$1:$I$65536,7,0) -> 否 | I62: =VLOOKUP(B62,[1]采购中心!$C$1:$J$65536,8,0) -> 海外营销 | J62: =VLOOKUP(B62,[1]采购中心!$C$1:$K$65536,9,0) -> 李景鹏 | M62: 淘汰 | N62: 保留 | O62: 2010-08-30 | P62: 5 | Q62: 10 | R62: 0 | S62: 50 | X62: 10894.66 | Y62: 10349.93 | Z62: 544.73 | AA62: 志高 | AB62: 注塑厂 | AC62: 一般 | AD62: 注塑车间 | AE62: 已申请淘汰 | AF62: C | AG62: V内核 | AJ62: 2021-11-09 | AK62: =68/1000 -> 0.068
A63: 61 | B63: 067322 | C63: K01556 | D63: 391990324R | E63: 塑料 | F63: 123款显示片A | G63: V系列 | M63: 淘汰 | N63: 保留 | O63: 2010-10-16 | P63: 5 | Q63: 10 | R63: 0 | S63: 50 | X63: 11111.11 | Y63: 10555.55 | Z63: 555.56 | AA63: 科智 | AB63: 注塑厂 | AC63: 一般 | AD63: 注塑车间 | AE63: 已申请淘汰 | AF63: C | AG63: V内核 | AJ63: 2021-11-10 | AK63: =142/1000 -> 0.142
A64: 62 | B64: 061696 | C64: C0941 | D64: 391220151R | E64: 塑料 | F64: 75款装饰环 | G64: V系列 | H64: =VLOOKUP(B64,[1]采购中心!$C$1:$I$65536,7,0) -> 否 | I64: =VLOOKUP(B64,[1]采购中心!$C$1:$J$65536,8,0) -> 营销部门 | J64: =VLOOKUP(B64,[1]采购中心!$C$1:$K$65536,9,0) -> / | M64: 淘汰 | N64: 保留 | O64: 2007-12-20 | P64: 5 | Q64: 13 | R64: 0 | S64: 50 | X64: 12440.15 | Y64: 11818.14 | Z64: 622.01 | AA64: 志高 | AB64: 注塑厂 | AC64: 较差 | AD64: 注塑车间 | AE64: 已申请淘汰 | AF64: C | AG64: V内核 | AJ64: 2021-11-10
A65: 63 | B65: 062034 | C65: C0955 | D65: 391220154B P250810003 | E65: 塑料 | F65: 81款镜片 | G65: V系列 | M65: 淘汰 | N65: 保留 | O65: 2007-12-20 | P65: 5 | Q65: 13 | R65: 0 | S65: 50 | X65: 5011.71 | Y65: 4761.12 | Z65: 250.59 | AA65: 志高 | AB65: 注塑厂 | AC65: 较差 | AD65: 注塑车间 | AE65: 已申请淘汰 | AF65: C | AG65: V内核 | AJ65: 2021-11-09
A66: 64 | B66: 067851 | C66: C1593 | D66: A050601000467-R0 | E66: 塑料 | F66: 123款镜片B模 | G66: V系列 | H66: =VLOOKUP(B66,[1]采购中心!$C$1:$I$65536,7,0) -> 否 | I66: =VLOOKUP(B66,[1]采购中心!$C$1:$J$65536,8,0) -> 海外营销 | J66: =VLOOKUP(B66,[1]采购中心!$C$1:$K$65536,9,0) -> 李景鹏 | M66: 淘汰 | N66: 保留 | O66: 2011-10-31 | P66: 5 | Q66: 9 | R66: 0 | S66: 50 | X66: 36297.02 | Y66: 34482.17 | Z66: 1814.85 | AA66: 志高 | AB66: 注塑厂 | AC66: 一般 | AD66: 注塑车间 | AE66: 已申请淘汰 | AF66: C | AG66: V内核 | AJ66: 2021-12-31
A67: 65 | B67: 068675 | C67: K01757 | D67: A050601000790-R0 | E67: 塑料 | F67: 134款装饰条 | G67: V系列 | H67: =VLOOKUP(B67,[1]采购中心!$C$1:$I$65536,7,0) -> 否 | I67: =VLOOKUP(B67,[1]采购中心!$C$1:$J$65536,8,0) -> 海外营销 | J67: =VLOOKUP(B67,[1]采购中心!$C$1:$K$65536,9,0) -> 李景鹏 | M67: 淘汰 | N67: 保留 | O67: 2012-09-25 | P67: 5 | Q67: 8 | R67: 0 | S67: 50 | X67: 32478.63 | Y67: 30854.70 | Z67: 1623.93 | AA67: 科智 | AB67: 注塑厂 | AC67: 一般 | AD67: 注塑车间 | AE67: 已申请淘汰 | AF67: C | AG67: V内核 | AJ67: 2021-11-12
A68: 66 | B68: 061698 | C68: C0943 | D68: A050601000111-R0 | E68: 塑料 | F68: 大金2007导风条A | G68: V系列 | H68: =VLOOKUP(B68,[1]采购中心!$C$1:$I$65536,7,0) -> 否 | I68: =VLOOKUP(B68,[1]采购中心!$C$1:$J$65536,8,0) -> 国内营销 | J68: =VLOOKUP(B68,[1]采购中心!$C$1:$K$65536,9,0) -> 胡江冯 | M68: 淘汰 | N68: 保留 | O68: 2007-12-20 | P68: 5 | Q68: 13 | R68: 0 | S68: 50 | X68: 64878.79 | Y68: 61634.85 | Z68: 3243.94 | AA68: 志高 | AB68: 注塑厂 | AC68: 较差 | AD68: 注塑车间 | AE68: 产品有批锋 | AF68: C | AG68: V内核 | AJ68: 2021-12-01
A69: 67 | B69: 062100 | C69: C1022 | D69: A050601000111-R0 | E69: 塑料 | F69: 导风条B模 | G69: V系列 | H69: =VLOOKUP(B69,[1]采购中心!$C$1:$I$65536,7,0) -> 否 | I69: =VLOOKUP(B69,[1]采购中心!$C$1:$J$65536,8,0) -> 采购 | J69: =VLOOKUP(B69,[1]采购中心!$C$1:$K$65536,9,0) -> \ | M69: 淘汰 | N69: 保留 | O69: 2008-03-13 | P69: 5 | Q69: 12 | R69: 0 | S69: 50 | X69: 73092.79 | Y69: 69438.15 | Z69: 3654.64 | AA69: 志高 | AB69: 注塑厂 | AC69: 较差 | AD69: 注塑车间 | AE69: 产品有批锋 | AF69: C | AG69: V内核 | AJ69: 2021-12-13
A70: 68 | B70: 062285 | C70: C1060 | D70: A050961000051-R0 | E70: 塑料 | F70: 2007大金124款导风条 | G70: V系列 | M70: 淘汰 | N70: 保留 | O70: 2007-04-02 | P70: 5 | Q70: 13 | R70: 0 | S70: 50 | X70: 78952.15 | Y70: 75004.54 | Z70: 3947.61 | AA70: 志高 | AB70: 注塑厂 | AC70: 较差 | AD70: 注塑车间 | AE70: 产品有批锋 | AF70: C | AG70: V内核 | AJ70: 2021-11-12
A71: 69 | B71: 069872 | C71: NY15001 | D71: A050601002871-R0 | E71: 塑料 | F71: MB内核154款面板 | G71: MB内核 | H71: 否 | I71: 海外营销 | J71: 李景鹏 | K71: 否 | L71: 是 | M71: 淘汰 | N71: 淘汰 | O71: 2015-01-09 | P71: 5 | Q71: 5 | R71: 0 | S71: 80 | U71: 3320 | X71: 222222.23 | Y71: 175926.00 | Z71: 46296.23 | AA71: 宁一 | AB71: 注塑厂 | AC71: 较好 | AD71: 注塑车间 | AF71: C | AG71: MB内核 | AJ71: 2022-01-10
A72: 70 | B72: 060200 | C72: CG/A111906 | D72: 391220129B | E72: 塑料 | F72: 装饰环4 | G72: M系列 | H72: 是 | I72: 海外营销 | J72: 李景鹏 | K72: / | L72: 否 | M72: 淘汰 | N72: 淘汰 | O72: 2007-01-01 | P72: 5 | Q72: 13 | R72: 0 | S72: 50 | U72: / | X72: 10000 | Y72: 9500.00 | Z72: 500.00 | AA72: 诚丰 | AB72: 注塑厂 | AC72: 较差 | AD72: 注塑车间 | AE72: 产品有批锋 | AF72: C | AG72: M内核 | AJ72: 2021-11-18
A73: 71 | B73: 060198 | C73: CG/A111706 | D73: A050601001530-R0 | E73: 塑料 | F73: M系列73款装饰环1/2 | G73: M系列 | H73: 否 | I73: 国内营销 | J73: 罗建成 | K73: / | L73: 是 | M73: 淘汰 | N73: 淘汰 | O73: 2012-09-20 | P73: 5 | Q73: 8 | R73: 0 | S73: 50 | X73: 18000 | Y73: 17100.00 | Z73: 900.00 | AA73: 志高 | AB73: 注塑厂 | AC73: 一般 | AD73: 注塑车间 | AE73: 已申请淘汰 | AF73: C | AG73: M内核 | AJ73: 2021-12-03
A74: 72 | B74: 062013 | C74: CG/A050107 | D74: A050601001603-R0 | E74: 塑料 | F74: 84款面板 | G74: M系列 | H74: 否 | I74: 海外营销 | J74: 李景鹏 | K74: 否 | L74: 是 | M74: 淘汰 | N74: 淘汰 | O74: 2009-06-23 | P74: 5 | Q74: 11 | R74: 0 | S74: 50 | U74: 3600 | X74: 230900 | Y74: 219355.00 | Z74: 11545.00 | AA74: 诚丰 | AB74: 注塑厂 | AC74: 较差 | AD74: 注塑车间 | AE74: 已申请淘汰 | AF74: C | AG74: M内核 | AJ74: 2021-11-30
A75: 73 | B75: 062015 | C75: CG/A070107 | D75: 391220197R | E75: 塑料 | F75: M70-85款面板 | G75: M系列 | H75: 否 | I75: 海外营销 | J75: 李景鹏 | K75: 是 | L75: 是 | M75: 淘汰 | N75: 淘汰 | O75: 2009-01-01 | P75: 5 | Q75: 11 | R75: 0 | S75: 50 | U75: 3032 | X75: 232800 | Y75: 221160.00 | Z75: 11640.00 | AA75: 诚丰 | AB75: 注塑厂 | AC75: 较差 | AD75: 注塑车间 | AE75: 已申请淘汰 | AF75: C | AG75: M内核 | AJ75: 2021-11-30
A76: 74 | B76: 062032 | C76: C0953 | D76: 391220157B | E76: 塑料 | F76: 81款面板 | G76: M系列 | H76: 否 | I76: 海外营销 | J76: 李景鹏 | K76: 是 | L76: 是 | M76: 淘汰 | N76: 淘汰 | O76: 2007-01-01 | P76: 5 | Q76: 13 | R76: 0 | S76: 50 | U76: 3600 | X76: 94167.17 | Y76: 89458.81 | Z76: 4708.36 | AA76: 模具厂 | AB76: 注塑厂 | AC76: 一般 | AD76: 注塑车间 | AE76: 已申请淘汰 | AF76: C | AG76: M内核 | AJ76: 2021-12-06
A77: 75 | B77: 062284 | C77: C1047 | D77: 391220258 | E77: 塑料 | F77: 96款面板A | G77: M系列 | H77: 否 | I77: 海外营销 | J77: 李景鹏 | K77: 是 | L77: 是 | M77: 淘汰 | N77: 淘汰 | O77: 2007-03-20 | P77: 5 | Q77: 13 | R77: 0 | S77: 50 | U77: 3200 | X77: 125234.59 | Y77: 118972.86 | Z77: 6261.73 | AA77: 模具厂 | AB77: 注塑厂 | AC77: 较差 | AD77: 注塑车间 | AE77: 已申请淘汰 | AF77: C | AG77: M内核 | AJ77: 2021-12-30
A78: 76 | B78: 062286 | C78: C1061 | D78: 391190097 | E78: 塑料 | F78: 70M93款导风条B模 | G78: M系列 | H78: 是 | I78: 海外营销 | J78: 李景鹏 | K78: 否 | L78: 是 | M78: 淘汰 | N78: 淘汰 | O78: 2007-03-20 | P78: 5 | Q78: 13 | R78: 0 | S78: 50 | U78: 6648 | X78: 48078.92 | Y78: 45674.97 | Z78: 2403.95 | AA78: 模具厂 | AB78: 注塑厂 | AC78: 较差 | AD78: 注塑车间 | AE78: 已申请淘汰 | AF78: C | AG78: M内核 | AJ78: 2021-11-26
A79: 77 | B79: 062288 | C79: C1063 | D79: 391220253B | E79: 塑料 | F79: 93款面板 | G79: M系列 | H79: 否 | I79: 海外营销 | J79: 李景鹏 | K79: 否 | L79: 是 | M79: 淘汰 | N79: 淘汰 | O79: 2007-03-20 | P79: 5 | Q79: 13 | R79: 0 | S79: 50 | U79: 2304 | X79: 112730.04 | Y79: 107093.54 | Z79: 5636.50 | AA79: 模具厂 | AB79: 注塑厂 | AC79: 较差 | AD79: 注塑车间 | AE79: 已申请淘汰 | AF79: C | AG79: M内核 | AJ79: 2022-01-09
A80: 78 | B80: 062310 | C80: C1119 | D80: 391022615 | E80: 塑料 | F80: 97款面板 | G80: M系列 | H80: 否 | I80: 海外营销 | J80: 李景鹏 | K80: 否 | L80: 否 | M80: 淘汰 | N80: 淘汰 | O80: 2007-03-20 | P80: 5 | Q80: 13 | R80: 0 | S80: 50 | U80: / | X80: 125945.82 | Y80: 119648.53 | Z80: 6297.29 | AA80: 模具厂 | AB80: 注塑厂 | AC80: 较差 | AD80: 注塑车间 | AE80: 产品有批锋 | AF80: C | AG80: M内核 | AJ80: 2021-12-17
A81: 79 | B81: 062423 | C81: C1118 | D81: 391220268B | E81: 塑料 | F81: M系列99款面板A | G81: M系列 | H81: 否 | I81: 海外营销 | J81: 李景鹏 | K81: 是 | L81: 是 | M81: 淘汰 | N81: 淘汰 | O81: 2011-07-19 | P81: 5 | Q81: 9 | R81: 0 | S81: 50 | U81: 3212 | X81: 144700.51 | Y81: 137465.48 | Z81: 7235.03 | AA81: 模具厂 | AB81: 注塑厂 | AC81: 较差 | AD81: 注塑车间 | AE81: 已申请淘汰 | AF81: C | AG81: M内核 | AJ81: 2021-11-11
A82: 80 | B82: 062424 | C82: C1121 | D82: 391130037 | E82: 塑料 | F82: 97款显示盒 | G82: M系列 | H82: 是 | I82: 海外营销 | J82: 李景鹏 | K82: 否 | L82: 否 | M82: 淘汰 | N82: 淘汰 | O82: 2008-07-01 | P82: 5 | Q82: 12 | R82: 0 | S82: 50 | U82: / | X82: 8979.91 | Y82: 8530.91 | Z82: 449.00 | AA82: 模具厂 | AB82: 注塑厂 | AC82: 较差 | AD82: 注塑车间 | AF82: C | AG82: M内核 | AJ82: 2021-11-18 | AK82: =110/1000 -> 0.11
A83: 81 | B83: 062514 | C83: C1150 | D83: 391220288B | E83: 塑料 | F83: 98款面板 | G83: M系列 | H83: 否 | I83: 海外营销 | J83: 李景鹏 | K83: 否 | L83: 是 | M83: 淘汰 | N83: 淘汰 | O83: 2011-04-08 | P83: 5 | Q83: 9 | R83: 0 | S83: 50 | U83: 2532 | X83: 121170.69 | Y83: 115112.16 | Z83: 6058.53 | AA83: 模具厂 | AB83: 注塑厂 | AC83: 较差 | AD83: 注塑车间 | AE83: 已申请淘汰 | AF83: C | AG83: M内核 | AJ83: 2021-11-16
A84: 82 | B84: 064927 | C84: C1243 | D84: 391220321R | E84: 塑料 | F84: 104款装饰条 | G84: M系列 | H84: 否 | I84: 海外营销 | J84: 李景鹏 | K84: 是 | L84: 是 | M84: 淘汰 | N84: 淘汰 | O84: 2010-08-20 | P84: 5 | Q84: 10 | R84: 0 | S84: 50 | U84: 4788 | X84: 54417.29 | Y84: 51696.43 | Z84: 2720.86 | AA84: 模具厂 | AB84: 注塑厂 | AC84: 较差 | AD84: 注塑车间 | AE84: 已申请淘汰 | AF84: C | AG84: M内核 | AJ84: 2021-12-11
A85: 83 | B85: 064926 | C85: C1242 | D85: 391220320 | E85: 塑料 | F85: 104款面板 | G85: M系列 | H85: 否 | I85: 海外营销 | J85: 李景鹏 | K85: 是 | L85: 是 | M85: 淘汰 | N85: 淘汰 | O85: 2010-08-20 | P85: 5 | Q85: 10 | R85: 0 | S85: 50 | U85: 2924 | X85: 109091 | Y85: 103636.45 | Z85: 5454.55 | AA85: 模具厂 | AB85: 注塑厂 | AC85: 较差 | AD85: 注塑车间 | AE85: 已申请淘汰 | AF85: C | AG85: M内核 | AJ85: 2022-01-05
A86: 84 | B86: 064931 | C86: C1252 | D86: 391220341R | E86: 塑料 | F86: 105款面板 | G86: M系列 | H86: 否 | I86: 海外营销 | J86: 李景鹏 | K86: 否 | L86: 是 | M86: 淘汰 | N86: 淘汰 | O86: 2010-09-13 | P86: 5 | Q86: 10 | R86: 0 | S86: 50 | U86: 3320 | X86: 79395.76 | Y86: 75425.97 | Z86: 3969.79 | AA86: 模具厂 | AB86: 注塑厂 | AC86: 较差 | AD86: 注塑车间 | AE86: 已申请淘汰 | AF86: C | AG86: M内核 | AJ86: 2021-11-10
A87: 85 | B87: 065013 | C87: CG/A040409 | D87: A050601000516-R0 | E87: 塑料 | F87: 108款面板 | G87: W系列 | H87: 否 | I87: 海外营销 | J87: 李景鹏 | K87: 否 | L87: 是 | M87: 淘汰 | N87: 淘汰 | O87: 2009-06-23 | P87: 5 | Q87: 11 | R87: 0 | S87: 50 | U87: 2816 | X87: 98290.6 | Y87: 93376.07 | Z87: 4914.53 | AA87: 诚丰 | AB87: 注塑厂 | AC87: 较差 | AD87: 注塑车间 | AF87: C | AG87: M内核 | AJ87: 2021-11-17
A88: 86 | B88: 065014 | C88: CG/A040509 | D88: A050601000515-R0 | E88: 塑料 | F88: 108款装饰板 | G88: M系列 | H88: 否 | I88: 海外营销 | J88: 李景鹏 | K88: 否 | L88: 是 | M88: 淘汰 | N88: 淘汰 | O88: 2009-06-23 | P88: 5 | Q88: 11 | R88: 0 | S88: 50 | U88: 3212 | X88: 51282.05 | Y88: 48717.95 | Z88: 2564.10 | AA88: 诚丰 | AB88: 注塑厂 | AC88: 较差 | AD88: 注塑车间 | AF88: C | AG88: M内核 | AJ88: 2021-11-13
A89: 87 | B89: 065200 | C89: C1278 | D89: 391220346R | E89: 塑料 | F89: 106款面板 | G89: M系列 | H89: 否 | I89: 海外营销 | J89: 李景鹏 | K89: 否 | L89: 是 | M89: 淘汰 | N89: 淘汰 | O89: 2010-02-01 | P89: 5 | Q89: 10 | R89: 0 | S89: 50 | U89: 3084 | X89: 86427.17 | Y89: 82105.81 | Z89: 4321.36 | AA89: 模具厂 | AB89: 注塑厂 | AC89: 较差 | AD89: 注塑车间 | AE89: 已申请淘汰 | AF89: C | AG89: M内核 | AJ89: 2021-11-22
A90: 88 | B90: 065203 | C90: C1331 | D90: 391220171R | E90: 塑料 | F90: 107/111款面板 | G90: M系列 | H90: 否 | I90: 海外营销 | J90: 李景鹏 | K90: 是 | L90: 否 | M90: 淘汰 | N90: 淘汰 | O90: 2010-12-31 | P90: 5 | Q90: 10 | R90: 0 | S90: 50 | U90: 2880 | X90: 92542.3 | Y90: 87915.18 | Z90: 4627.12 | AA90: 模具厂 | AB90: 注塑厂 | AC90: 一般 | AD90: 注塑车间 | AE90: 已申请淘汰 | AF90: C | AG90: M内核 | AJ90: 2021-11-16
A91: 89 | B91: 066500 | C91: C1417 | D91: 391220505R | E91: 塑料 | F91: 50款面板 | G91: M系列 | H91: 否 | I91: 海外营销 | J91: 李景鹏 | K91: 是 | L91: 是 | M91: 淘汰 | N91: 淘汰 | O91: 2010-01-01 | P91: 5 | Q91: 10 | R91: 0 | S91: 50 | U91: 3032 | X91: 144822.88 | Y91: 137581.74 | Z91: 7241.14 | AA91: 模具厂 | AB91: 注塑厂 | AC91: 较差 | AD91: 注塑车间 | AE91: 已申请淘汰 | AF91: C | AG91: M内核 | AJ91: 2021-11-23
A92: 90 | B92: 066808 | C92: C1366 | D92: A050601001349-R0 | E92: 塑料 | F92: 99款面板B模 | G92: M系列 | H92: 否 | I92: 海外营销 | J92: 李景鹏 | K92: 是 | L92: 是 | M92: 淘汰 | N92: 淘汰 | O92: 2011-07-30 | P92: 5 | Q92: 9 | R92: 0 | S92: 50 | U92: 3200 | X92: 103327.03 | Y92: 98160.68 | Z92: 5166.35 | AA92: 模具厂 | AB92: 注塑厂 | AC92: 较差 | AD92: 注塑车间 | AE92: 已申请淘汰 | AF92: C | AG92: M内核 | AJ92: 2021-12-06
A93: 91 | B93: 066812 | C93: C1414 | D93: 391220501R | E93: 塑料 | F93: 46款面板 | G93: M系列 | H93: 否 | I93: 海外营销 | J93: 李景鹏 | K93: 是 | L93: 否 | M93: 淘汰 | N93: 淘汰 | O93: 2010-01-01 | P93: 5 | Q93: 10 | R93: 0 | S93: 50 | U93: / | X93: 123289.14 | Y93: 117124.68 | Z93: 6164.46 | AA93: 模具厂 | AB93: 注塑厂 | AC93: 较差 | AD93: 注塑车间 | AE93: 已申请淘汰 | AF93: C | AG93: M内核 | AJ93: 2021-11-19 | AK93: 3.8
A94: 92 | B94: 066813 | C94: C1416 | D94: 391220502R | E94: 塑料 | F94: 48款面板 | G94: M系列 | H94: 否 | I94: 海外营销 | J94: 李景鹏 | K94: 是 | L94: 否 | M94: 淘汰 | N94: 淘汰 | O94: 2010-07-05 | P94: 5 | Q94: 10 | R94: 0 | S94: 50 | U94: / | X94: 128498.95 | Y94: 122074.00 | Z94: 6424.95 | AA94: 模具厂 | AB94: 注塑厂 | AC94: 较差 | AD94: 注塑车间 | AE94: 已申请淘汰 | AF94: C | AG94: M内核 | AJ94: 2022-01-04
A95: 93 | B95: 066817 | C95: C1434 | D95: 391220533R | E95: 塑料 | F95: 117款面板 | G95: M系列 | H95: 否 | I95: 海外营销 | J95: 李景鹏 | K95: 是 | L95: 是 | M95: 淘汰 | N95: 淘汰 | O95: 2010-08-20 | P95: 5 | Q95: 10 | R95: 0 | S95: 50 | U95: 2980 | X95: 130463.94 | Y95: 123940.74 | Z95: 6523.20 | AA95: 模具厂 | AB95: 注塑厂 | AC95: 较差 | AD95: 注塑车间 | AE95: 已申请淘汰 | AF95: C | AG95: M内核 | AJ95: 2021-11-11
A96: 94 | B96: 066824 | C96: C1450 | D96: 391220532R | E96: 塑料 | F96: 116款面板 | G96: M系列 | H96: 否 | I96: 海外营销 | J96: 李景鹏 | K96: 否 | L96: 否 | M96: 淘汰 | N96: 淘汰 | O96: 2007-04-02 | P96: 5 | Q96: 13 | R96: 0 | S96: 50 | U96: / | X96: 139271.5 | Y96: 132307.92 | Z96: 6963.58 | AA96: 模具厂 | AB96: 注塑厂 | AC96: 一般 | AD96: 注塑车间 | AE96: 已申请淘汰 | AF96: C | AG96: M内核 | AJ96: 2021-12-11
A97: 95 | B97: 062425 | C97: C1123 | D97: 391220274B | E97: 塑料 | F97: 95款面板 | G97: M系列 | H97: 否 | I97: 海外营销 | J97: 李景鹏 | K97: 否 | L97: 是 | M97: 淘汰 | N97: 淘汰 | O97: 2007-04-02 | P97: 5 | Q97: 13 | R97: 0 | S97: 50 | U97: 2620 | X97: 135633.67 | Y97: 128851.99 | Z97: 6781.68 | AA97: 模具厂 | AB97: 注塑厂 | AC97: 一般 | AD97: 注塑车间 | AE97: 已申请淘汰 | AF97: C | AG97: M内核 | AJ97: 2021-12-08
A98: 96 | B98: 066883 | C98: C1333 | D98: 391220258 | E98: 塑料 | F98: 96款面板B模 | G98: M系列 | H98: 否 | I98: 海外营销 | J98: 李景鹏 | K98: 是 | L98: 是 | M98: 淘汰 | N98: 淘汰 | O98: 2011-07-30 | P98: 5 | Q98: 9 | R98: 0 | S98: 50 | U98: 3200 | X98: 133022.19 | Y98: 126371.08 | Z98: 6651.11 | AA98: 模具厂 | AB98: 注塑厂 | AC98: 较差 | AD98: 注塑车间 | AE98: 已申请淘汰 | AF98: C | AG98: M内核 | AJ98: 2021-11-24
A99: 97 | B99: 066928 | C99: CG/A040910 | D99: 391220569R | E99: 塑料 | F99: 119款面板A模 | G99: M系列 | H99: 否 | I99: 海外营销 | J99: 李景鹏 | K99: 是 | L99: 是 | M99: 淘汰 | N99: 淘汰 | O99: 2010-01-01 | P99: 5 | Q99: 10 | R99: 0 | S99: 50 | U99: 2980 | X99: 126495.73 | Y99: 120170.94 | Z99: 6324.79 | AA99: 诚丰 | AB99: 注塑厂 | AC99: 较差 | AD99: 注塑车间 | AE99: 已申请淘汰 | AF99: C | AG99: M内核 | AJ99: 2021-11-26
A100: 98 | B100: 067229 | C100: CG/A020310 | D100: 391230507B | E100: 塑料 | F100: 79款装饰板 | G100: M系列 | H100: 否 | I100: 海外营销 | J100: 李景鹏 | K100: 是 | L100: 是 | M100: 淘汰 | N100: 淘汰 | O100: 2010-01-01 | P100: 5 | Q100: 10 | R100: 0 | S100: 50 | X100: 81196.58 | Y100: 77136.75 | Z100: 4059.83 | AA100: 诚丰 | AB100: 注塑厂 | AC100: 一般 | AD100: 注塑车间 | AE100: 已申请淘汰 | AF100: C | AG100: M内核 | AJ100: 2021-12-09
A101: 99 | B101: 066937 | C101: CG/A040210 | D101: A050601000123-R0 | E101: 塑料 | F101: 118款面板 | G101: M系列 | H101: 否 | I101: 海外营销 | J101: 李景鹏 | K101: 是 | L101: 是 | M101: 淘汰 | N101: 淘汰 | O101: 2010-01-01 | P101: 5 | Q101: 10 | R101: 0 | S101: 50 | U101: 2532 | X101: 123076.92 | Y101: 116923.07 | Z101: 6153.85 | AA101: 诚丰 | AB101: 注塑厂 | AC101: 较差 | AD101: 注塑车间 | AE101: 已申请淘汰 | AF101: C | AG101: M内核 | AJ101: 2021-11-25
A102: 100 | B102: 067055 | C102: CG/A030109 | D102: 391260032R | E102: 塑料 | F102: 中框C模 | G102: M系列 | H102: 是 | I102: 国内营销 | J102: 罗建成 | K102: / | L102: 是 | M102: 淘汰 | N102: 淘汰 | O102: 2009-07-28 | P102: 5 | Q102: 11 | R102: 0 | S102: 50 | U102: 3896 | X102: 170940.17 | Y102: 162393.16 | Z102: 8547.01 | AA102: 诚丰 | AB102: 注塑厂 | AC102: 较差 | AD102: 注塑车间 | AE102: 产品有批锋 | AF102: C | AG102: M内核 | AJ102: 2021-12-20
A103: 101 | B103: 067060 | C103: CG/A030609 | D103: 391260032R | E103: 塑料 | F103: 70中框D模 | G103: M系列 | H103: 是 | I103: 国内营销 | J103: 罗建成 | K103: 是 | L103: 是 | M103: 淘汰 | N103: 淘汰 | O103: 2009-05-18 | P103: 5 | Q103: 11 | R103: 0 | S103: 50 | U103: 3032 | X103: 170940.17 | Y103: 162393.16 | Z103: 8547.01 | AA103: 诚丰 | AB103: 注塑厂 | AC103: 较差 | AD103: 注塑车间 | AE103: 产品有批锋 | AF103: C | AG103: M内核 | AJ103: 2022-01-02
A104: 102 | B104: 067072 | C104: CG/A030510 | D104: 391260032R | E104: 塑料 | F104: M70中框H模 | G104: M系列 | H104: 是 | I104: 国内营销 | J104: 罗建成 | K104: / | L104: 是 | M104: 淘汰 | N104: 淘汰 | O104: 2010-08-20 | P104: 5 | Q104: 10 | R104: 0 | S104: 50 | U104: 3032 | X104: 153846.15 | Y104: 146153.84 | Z104: 7692.31 | AA104: 诚丰 | AB104: 注塑厂 | AC104: 较差 | AD104: 注塑车间 | AE104: 产品有批锋 | AF104: C | AG104: M内核 | AJ104: 2022-01-02
A105: 103 | B105: 067073 | C105: CG/A030810 | D105: 391260032R | E105: 塑料 | F105: 70中框I模 | G105: M系列 | H105: 是 | I105: 国内营销 | J105: 罗建成 | K105: 是 | L105: 是 | M105: 淘汰 | N105: 淘汰 | O105: 2010-06-17 | P105: 5 | Q105: 10 | R105: 0 | S105: 50 | U105: 3200 | X105: 153846.15 | Y105: 146153.84 | Z105: 7692.31 | AA105: 诚丰 | AB105: 注塑厂 | AC105: 较差 | AD105: 注塑车间 | AE105: 产品有批锋 | AF105: C | AG105: M内核 | AJ105: 2021-12-16
A106: 104 | B106: 067228 | C106: CG/A020110 | D106: 391220500R | E106: 塑料 | F106: 27款面板 | G106: M系列 | H106: 否 | I106: 海外营销 | J106: 李景鹏 | K106: 是 | L106: 否 | M106: 淘汰 | N106: 淘汰 | O106: 2011-05-06 | P106: 5 | Q106: 9 | R106: 0 | S106: 50 | U106: / | X106: 128205.13 | Y106: 121794.87 | Z106: 6410.26 | AA106: 诚丰 | AB106: 注塑厂 | AC106: 较差 | AD106: 注塑车间 | AE106: 已申请淘汰 | AF106: C | AG106: M内核 | AJ106: 2021-11-18
A107: 105 | B107: 067230 | C107: CG/A020210 | D107: 391220506R | E107: 塑料 | F107: 79款面板 | G107: M系列 | H107: 否 | I107: 海外营销 | J107: 李景鹏 | K107: 否 | L107: 是 | M107: 淘汰 | N107: 淘汰 | O107: 2010-01-01 | P107: 5 | Q107: 10 | R107: 0 | S107: 50 | U107: 2940 | X107: 136752.14 | Y107: 129914.53 | Z107: 6837.61 | AA107: 诚丰 | AB107: 注塑厂 | AC107: 较差 | AD107: 注塑车间 | AE107: 已申请淘汰 | AF107: C | AG107: M内核 | AJ107: 2021-11-20
A108: 106 | B108: 067237 | C108: K01533 | D108: 391010231R | E108: 塑料 | F108: 122款面板（惠而浦） | G108: M系列 | H108: 否 | I108: 国内营销 | J108: 罗建成 | K108: 是 | L108: 是 | M108: 淘汰 | N108: 淘汰 | O108: 2010-07-30 | P108: 5 | Q108: 10 | R108: 0 | S108: 50 | U108: 2980 | X108: 143589.74 | Y108: 136410.25 | Z108: 7179.49 | AA108: 模具厂 | AB108: 注塑厂 | AC108: 较差 | AD108: 注塑车间 | AE108: 产品有批锋 | AF108: C | AG108: M内核 | AJ108: 2022-01-11
A109: 107 | B109: 067257 | C109: C1442 | D109: 391220530R | E109: 塑料 | F109: 115款面板 | G109: M系列 | H109: 否 | I109: 海外营销 | J109: 李景鹏 | K109: 否 | L109: 是 | M109: 淘汰 | N109: 淘汰 | O109: 2009-09-15 | P109: 5 | Q109: 11 | R109: 0 | S109: 50 | U109: 2928 | X109: 154891.92 | Y109: 147147.32 | Z109: 7744.60 | AA109: 模具厂 | AB109: 注塑厂 | AC109: 较差 | AD109: 注塑车间 | AE109: 已申请淘汰 | AF109: C | AG109: M内核 | AJ109: 2021-11-17
A110: 108 | B110: 067261 | C110: C1446 | D110: 391220531B | E110: 塑料 | F110: 115款装饰条 | G110: M系列 | H110: 否 | I110: 海外营销 | J110: 李景鹏 | K110: 否 | L110: 是 | M110: 淘汰 | N110: 淘汰 | O110: 2013-01-01 | P110: 5 | Q110: 7 | R110: 0 | S110: 50 | U110: 4936 | X110: 43099.77 | Y110: 40944.78 | Z110: 2154.99 | AA110: 模具厂 | AB110: 注塑厂 | AC110: 一般 | AD110: 注塑车间 | AE110: 已申请淘汰 | AF110: C | AG110: M内核 | AJ110: 2021-11-23 | AK110: 2.8
A111: 109 | B111: 067266 | C111: C1502 | D111: 391220171R | E111: 塑料 | F111: 76/89款面板B | G111: M系列 | H111: 否 | I111: 国内营销 | J111: 罗建成 | K111: 是 | L111: 否 | M111: 淘汰 | N111: 淘汰 | O111: 2011-01-01 | P111: 5 | Q111: 9 | R111: 0 | S111: 50 | U111: 3140 | X111: 138921.59 | Y111: 131975.51 | Z111: 6946.08 | AA111: 模具厂 | AB111: 注塑厂 | AC111: 较差 | AD111: 注塑车间 | AE111: 产品有批锋 | AF111: C | AG111: M内核 | AJ111: 2021-12-07
A112: 110 | B112: 067267 | C112: C1503 | D112: 391220361R A050601000166-R0 | E112: 塑料 | F112: 107/111款面板B模 | G112: M系列 | H112: 否 | I112: 海外营销 | J112: 李景鹏 | K112: 是 | L112: 是 | M112: 淘汰 | N112: 淘汰 | O112: 2011-10-20 | P112: 5 | Q112: 9 | R112: 0 | S112: 50 | U112: 2880 | X112: 133539.8 | Y112: 126862.81 | Z112: 6676.99 | AA112: 模具厂 | AB112: 注塑厂 | AC112: 较差 | AD112: 注塑车间 | AE112: 已申请淘汰 | AF112: C | AG112: M内核 | AJ112: 2021-11-25
A113: 111 | B113: 067319 | C113: K01553 | D113: A050601000118-R0 | E113: 塑料 | F113: 123款面板 | G113: M系列 | H113: 否 | I113: 海外营销 | J113: 李景鹏 | K113: 是 | L113: 是 | M113: 淘汰 | N113: 淘汰 | O113: 2010-01-01 | P113: 5 | Q113: 10 | R113: 0 | S113: 50 | U113: 2712 | X113: 128205.13 | Y113: 121794.87 | Z113: 6410.26 | AA113: 科智 | AB113: 注塑厂 | AC113: 较差 | AD113: 注塑车间 | AE113: 已申请淘汰 | AF113: C | AG113: M内核 | AJ113: 2021-12-06
A114: 112 | B114: 067326 | C114: K01560 | D114: 391230491B | E114: 塑料 | F114: 123款装饰条 | G114: M系列 | H114: 否 | I114: 海外营销 | J114: 李景鹏 | K114: 是 | L114: 是 | M114: 淘汰 | N114: 淘汰 | O114: 2010-07-30 | P114: 5 | Q114: 10 | R114: 0 | S114: 50 | U114: 4560 | X114: 64102.56 | Y114: 60897.43 | Z114: 3205.13 | AA114: 科智 | AB114: 注塑厂 | AC114: 较差 | AD114: 注塑车间 | AE114: 已申请淘汰 | AF114: C | AG114: M内核 | AJ114: 2021-12-08 | AK114: 0.733
A115: 113 | B115: 067852 | C115: C1594 | D115: A050601000470-R0 A050601000469-R0 | E115: 塑料 | F115: 123款装饰条+镜片 | G115: M系列 | H115: 否 | I115: 海外营销 | J115: 李景鹏 | K115: 是 | L115: 是 | M115: 淘汰 | N115: 淘汰 | O115: 2010-07-30 | P115: 5 | Q115: 10 | R115: 0 | S115: 50 | U115: 4560 | X115: 70013.18 | Y115: 66512.52 | Z115: 3500.66 | AA115: 科智 | AB115: 注塑厂 | AC115: 较差 | AD115: 注塑车间 | AE115: 已申请淘汰 | AF115: C | AG115: M内核 | AJ115: 2021-11-25
A116: 114 | B116: 067340 | C116: C1523 | D116: 391220272B | E116: 塑料 | F116: 94款面板B模 | G116: M系列 | H116: 否 | I116: 海外营销 | J116: 李景鹏 | K116: 是 | L116: 是 | M116: 淘汰 | N116: 淘汰 | O116: 2011-04-08 | P116: 5 | Q116: 9 | R116: 0 | S116: 50 | U116: 2744 | X116: 138872.32 | Y116: 131928.70 | Z116: 6943.62 | AA116: 模具厂 | AB116: 注塑厂 | AC116: 较差 | AD116: 注塑车间 | AE116: 已申请淘汰 | AF116: C | AG116: M内核 | AJ116: 2021-12-02
A117: 115 | B117: 067494 | C117: C1530 | D117: A050601000083-R0 | E117: 塑料 | F117: 128款面板 | G117: M系列 | H117: 否 | I117: 海外营销 | J117: 李景鹏 | K117: 否 | L117: 是 | M117: 淘汰 | N117: 淘汰 | O117: 2011-10-20 | P117: 5 | Q117: 9 | R117: 0 | S117: 50 | U117: 3140 | X117: 151286.14 | Y117: 143721.83 | Z117: 7564.31 | AA117: 模具厂 | AB117: 注塑厂 | AC117: 较差 | AD117: 注塑车间 | AE117: 已申请淘汰 | AF117: C | AG117: M内核 | AJ117: 2021-11-26
A118: 116 | B118: 067838 | C118: C1569 | D118: A050601000215-R0 A050999000211-B0 | E118: 塑料 | F118: M系列124款中框 | G118: M系列 | H118: 是 | I118: 海外营销 | J118: 李景鹏 | K118: 否 | L118: 是 | M118: 淘汰 | N118: 淘汰 | O118: 2011-07-30 | P118: 5 | Q118: 9 | R118: 0 | S118: 50 | U118: 2680 | X118: 358312.12 | Y118: 340396.51 | Z118: 17915.61 | AA118: 模具厂 | AB118: 注塑厂 | AC118: 较差 | AD118: 注塑车间 | AE118: 产品有批锋 | AF118: C | AG118: M内核 | AJ118: 2021-11-22
A119: 117 | B119: 068212 | C119: K01615 | D119: A050601000227-R0 | E119: 塑料 | F119: M127款中框 | G119: M系列 | H119: 是 | I119: 海外营销 | J119: 李景鹏 | K119: 否 | L119: 是 | M119: 淘汰 | N119: 淘汰 | O119: 2011-07-06 | P119: 5 | Q119: 9 | R119: 0 | S119: 50 | U119: 3088 | X119: 243333.33 | Y119: 231166.66 | Z119: 12166.67 | AA119: 科智 | AB119: 注塑厂 | AC119: 较差 | AD119: 注塑车间 | AE119: 已申请淘汰 | AF119: C | AG119: M内核 | AJ119: 2021-11-23 | AK119: 3.8
A120: 118 | B120: 068213 | C120: K01616 | D120: A050601000226-R0 A050601000224-R0 | E120: 塑料 | F120: 127款左右侧板 | G120: M系列 | H120: 是 | I120: 海外营销 | J120: 李景鹏 | K120: 否 | L120: 是 | M120: 淘汰 | N120: 淘汰 | O120: 2011-10-20 | P120: 5 | Q120: 9 | R120: 0 | S120: 50 | U120: 5472 | X120: 25299.15 | Y120: 24034.19 | Z120: 1264.96 | AA120: 科智 | AB120: 注塑厂 | AC120: 较差 | AD120: 注塑车间 | AE120: 已申请淘汰 | AF120: C | AG120: M内核 | AJ120: 2021-12-08
A121: 119 | B121: 068215 | C121: K01618 | D121: A050601000221-R0 | E121: 塑料 | F121: 127款面板 | G121: M系列 | H121: 否 | I121: 海外营销 | J121: 李景鹏 | K121: 否 | L121: 是 | M121: 淘汰 | N121: 淘汰 | O121: 2011-10-20 | P121: 5 | Q121: 9 | R121: 0 | S121: 50 | U121: 2080 | X121: 120000 | Y121: =X121-Z121 -> 114000.00 | Z121: 6000.00 | AA121: 科智 | AB121: 注塑厂 | AC121: 较差 | AD121: 注塑车间 | AE121: 已申请淘汰 | AF121: C | AG121: M内核 | AJ121: 2021-11-18
A122: 120 | B122: 068407 | C122: C1740 | D122: A050601000810-R0 A050601002628-R0 | E122: 塑料 | F122: 136款装饰板左右 | G122: M系列 | H122: 否 | I122: 海外营销 | J122: 李景鹏 | K122: 是 | L122: 是 | M122: 淘汰 | N122: 淘汰 | O122: 2013-10-20 | P122: 5 | Q122: 7 | R122: 0 | S122: 50 | U122: 13968 | X122: 22205.88 | Y122: 21095.59 | Z122: 1110.29 | AA122: 模具厂 | AB122: 注塑厂 | AC122: 一般 | AD122: 注塑车间 | AE122: 已申请淘汰 | AF122: C | AG122: M内核 | AJ122: 2021-12-07
A123: 121 | B123: 068421 | C123: C1735 | D123: A050601000767-R0 | E123: 塑料 | F123: MB138款面板 | G123: MB系列 | H123: 否 | I123: 海外营销 | J123: 李景鹏 | K123: 否 | L123: 是 | M123: 淘汰 | N123: 淘汰 | O123: 2013-01-01 | P123: 5 | Q123: 7 | R123: 0 | S123: 50 | U123: 3768 | X123: 129415.06 | Y123: 122944.31 | Z123: 6470.75 | AA123: 模具厂 | AB123: 注塑厂 | AC123: 一般 | AD123: 注塑车间 | AF123: C | AG123: M内核 | AJ123: 2021-12-31
A124: 122 | B124: 068428 | C124: C1724 | D124: A050601000800-R0 | E124: 塑料 | F124: M系列135款面板 | G124: M系列 | H124: 否 | I124: 海外营销 | J124: 李景鹏 | K124: 否 | L124: 是 | M124: 淘汰 | N124: 淘汰 | O124: 2013-01-01 | P124: 5 | Q124: 7 | R124: 0 | S124: 50 | U124: / | X124: 182605.43 | Y124: 173475.16 | Z124: 9130.27 | AA124: 模具厂 | AB124: 注塑厂 | AC124: 一般 | AD124: 注塑车间 | AF124: C | AG124: M内核 | AJ124: 2021-12-03
A125: 123 | B125: 068432 | C125: C1728 | D125: A050601000764-R0 | E125: 塑料 | F125: MB137款面板 | G125: MB系列 | H125: 否 | I125: 海外营销 | J125: 李景鹏 | K125: 否 | L125: 是 | M125: 淘汰 | N125: 淘汰 | O125: 2013-01-01 | P125: 5 | Q125: 7 | R125: 0 | S125: 50 | U125: 3456 | X125: 134864.15 | Y125: 128120.94 | Z125: 6743.21 | AA125: 模具厂 | AB125: 注塑厂 | AC125: 一般 | AD125: 注塑车间 | AF125: C | AG125: M内核 | AJ125: 2021-12-22
A126: 124 | B126: 068433 | C126: C1729 | D126: A050601000765-R0 | E126: 塑料 | F126: 137款装饰板 | G126: MB系列 | H126: 否 | I126: 海外营销 | J126: 李景鹏 | K126: 否 | L126: 是 | M126: 淘汰 | N126: 淘汰 | O126: 2013-01-01 | P126: 5 | Q126: 7 | R126: 0 | S126: 50 | U126: 5236 | X126: 66003.49 | Y126: 62703.32 | Z126: 3300.17 | AA126: 模具厂 | AB126: 注塑厂 | AC126: 一般 | AD126: 注塑车间 | AF126: C | AG126: M内核 | AJ126: 2021-11-24
A127: 125 | B127: 069604 | C127: C1767 | D127: A050601001172-R0 | E127: 塑料 | F127: 127款双层导风条 | G127: M系列 | H127: 是 | I127: 海外营销 | J127: 李景鹏 | K127: 否 | L127: 是 | M127: 淘汰 | N127: 淘汰 | O127: 2005-07-05 | P127: 5 | Q127: 15 | R127: 0 | S127: 50 | U127: 7200 | X127: 91357.26 | Y127: 76663.97 | Z127: 14693.29 | AA127: 模具厂 | AB127: 注塑厂 | AC127: 一般 | AD127: 注塑车间 | AF127: C | AG127: M内核 | AJ127: 2021-12-03
A128: 126 | B128: 068470 | C128: 1W060046A | D128: A050601001403-A0 | E128: 塑料 | F128: MC151款装饰条 | G128: MC系列 | H128: 否 | I128: 海外营销 | J128: 李景鹏 | K128: 否 | L128: 是 | M128: 淘汰 | N128: 淘汰 | O128: 2013-01-01 | P128: 5 | Q128: 7 | R128: 0 | S128: 50 | U128: 2980 | X128: 32478.63 | Y128: 30854.70 | Z128: 1623.93 | AA128: 顺威 | AB128: 注塑厂 | AC128: 一般 | AD128: 注塑车间 | AF128: C | AG128: M内核 | AJ128: 2021-12-23
A129: 127 | B129: 068699 | C129: NY13071 | D129: A050601001452-R0 | E129: 塑料 | F129: M70-146款面板 | G129: MB系列 | H129: 否 | I129: 海外营销 | J129: 李景鹏 | K129: 否 | L129: 是 | M129: 淘汰 | N129: 淘汰 | O129: 2008-07-25 | P129: 5 | Q129: 12 | R129: 0 | S129: 50 | U129: / | X129: 196581.2 | Y129: 186752.14 | Z129: 9829.06 | AA129: 宁一 | AB129: 注塑厂 | AC129: 较差 | AD129: 注塑车间 | AE129: 已申请淘汰 | AF129: C | AG129: M内核 | AJ129: 2022-01-09
A130: 128 | B130: 068782 | C130: CG/A020212 | D130: A050601000724-R0 | E130: 塑料 | F130: 133款面板 | G130: M系列 | H130: 否 | I130: 海外营销 | J130: 李景鹏 | K130: 否 | L130: 是 | M130: 淘汰 | N130: 淘汰 | O130: 2013-01-01 | P130: 5 | Q130: 7 | R130: 0 | S130: 50 | U130: / | X130: 136752.14 | Y130: 129914.53 | Z130: 6837.61 | AA130: 诚丰 | AB130: 注塑厂 | AC130: 一般 | AD130: 注塑车间 | AE130: 已申请淘汰 | AF130: C | AG130: M内核 | AJ130: 2021-11-27
A131: 129 | B131: 069623 | C131: C1568 | D131: A050601000216-R0 | E131: 塑料 | F131: 124款面板 | G131: M系列 | H131: 否 | I131: 海外营销 | J131: 李景鹏 | K131: 否 | L131: 是 | M131: 淘汰 | N131: 淘汰 | O131: 2010-08-20 | P131: 5 | Q131: 10 | R131: 0 | S131: 50 | U131: 2764 | X131: 175383.25 | Y131: 147175.70 | Z131: 28207.55 | AA131: 模具厂 | AB131: 注塑厂 | AC131: 较差 | AD131: 注塑车间 | AE131: 已申请淘汰 | AF131: C | AG131: M内核 | AJ131: 2021-11-26
A132: 130 | B132: 061661 | C132: CG/A010107 | D132: 391220160R | E132: 塑料 | F132: M73款面板A | G132: M系列 | H132: 否 | I132: 国内营销 | J132: 罗建成 | K132: 是 | L132: 是 | M132: 淘汰 | N132: 淘汰 | O132: 2010-01-01 | P132: 5 | Q132: 10 | R132: 0 | S132: 50 | U132: 2880 | X132: 203000 | Y132: 192850.00 | Z132: 10150.00 | AA132: 诚丰 | AB132: 注塑厂 | AC132: 较差 | AD132: 注塑车间 | AE132: 已申请淘汰 | AF132: C | AG132: M内核 | AJ132: 2021-12-23
A133: 131 | B133: 061662 | C133: CG/A010207 | D133: 391220160R | E133: 塑料 | F133: 73款面板B模 | G133: M系列 | H133: 否 | I133: 国内营销 | J133: 罗建成 | K133: 是 | L133: 是 | M133: 淘汰 | N133: 淘汰 | O133: 2010-01-01 | P133: 5 | Q133: 10 | R133: 0 | S133: 50 | U133: 3520 | X133: 33500 | Y133: 31825.00 | Z133: 1675.00 | AA133: 诚丰 | AB133: 注塑厂 | AC133: 较差 | AD133: 注塑车间 | AE133: 已申请淘汰 | AF133: C | AG133: M内核 | AJ133: 2021-12-08
A134: 132 | B134: 060199 | C134: CG/A111806 | D134: 391220129B | E134: 塑料 | F134: 70M装饰环3 | G134: M系列 | H134: 是 | I134: 国内营销 | J134: 罗建成 | K134: / | L134: 是 | M134: 淘汰 | N134: 淘汰 | O134: 2014-05-10 | P134: 5 | Q134: 6 | R134: 0 | S134: 80 | X134: 10000 | Y134: 9500.00 | Z134: 500.00 | AA134: 诚丰 | AB134: 注塑厂 | AC134: 一般 | AD134: 注塑车间 | AF134: C | AG134: M内核 | AJ134: 2021-11-27
A135: 133 | B135: 060201 | C135: CG/A112006 | D135: 391220134B | E135: 塑料 | F135: 人感接收窗 | G135: M系列 | M135: 淘汰 | N135: 淘汰 | O135: 2009-11-20 | P135: 5 | Q135: 11 | R135: 0 | S135: 50 | X135: 15000 | Y135: 14250.00 | Z135: 750.00 | AA135: 诚丰 | AB135: 注塑厂 | AC135: 较差 | AD135: 注塑车间 | AE135: 已申请淘汰 | AF135: C | AG135: M内核 | AJ135: 2021-11-29
A136: 134 | B136: 066932 | C136: CG/A041310 | D136: 391230507B | E136: 塑料 | F136: M119款装饰板 | G136: M系列 | H136: 否 | I136: 海外营销 | J136: 李景鹏 | K136: 否 | L136: 是 | M136: 淘汰 | N136: 淘汰 | O136: 2010-01-01 | P136: 5 | Q136: 10 | R136: 0 | S136: 50 | U136: 2940 | X136: 23076.92 | Y136: 21923.07 | Z136: 1153.85 | AA136: 诚丰 | AB136: 注塑厂 | AC136: 较差 | AD136: 注塑车间 | AE136: 已申请淘汰 | AF136: C | AG136: M内核 | AJ136: 2021-12-15
A137: 135 | B137: 062427 | C137: C1183 | D137: 391990285R | E137: 塑料 | F137: M系列金刚眼遥控器盒托架 | G137: M系列 | H137: 否 | I137: 营销部门 | J137: / | K137: / | L137: / | M137: 淘汰 | N137: 淘汰 | O137: 2011-07-30 | P137: 5 | Q137: 9 | R137: 0 | S137: 50 | U137: 3500 | X137: 16704.33 | Y137: 15869.11 | Z137: 835.22 | AA137: 模具厂 | AB137: 注塑厂 | AC137: 较差 | AD137: 注塑车间 | AE137: 已申请淘汰 | AF137: C | AG137: M内核 | AJ137: 2022-01-04
A138: 136 | B138: 061664 | C138: CG/A010407 | D138: 391220162R | E138: 塑料 | F138: M73款装饰环2 | G138: M系列 | H138: =VLOOKUP(B138,[1]采购中心!$C$1:$I$65536,7,0) -> 否 | I138: =VLOOKUP(B138,[1]采购中心!$C$1:$J$65536,8,0) -> 营销部门 | J138: =VLOOKUP(B138,[1]采购中心!$C$1:$K$65536,9,0) -> \ | M138: 淘汰 | N138: 淘汰 | O138: 2007年 | P138: 5 | Q138: 13 | R138: 0 | S138: 50 | X138: 11500 | Y138: 10925.00 | Z138: 575.00 | AA138: 诚丰 | AB138: 注塑厂 | AC138: 较差 | AD138: 注塑车间 | AF138: C | AG138: M内核 | AJ138: 2021-11-22
A139: 137 | B139: 062033 | C139: C0954 | D139: 391220155R | E139: 塑料 | F139: M81款电镀圈 | G139: M系列 | H139: =VLOOKUP(B139,[1]采购中心!$C$1:$I$65536,7,0) -> 否 | I139: =VLOOKUP(B139,[1]采购中心!$C$1:$J$65536,8,0) -> 营销部门 | J139: =VLOOKUP(B139,[1]采购中心!$C$1:$K$65536,9,0) -> \ | M139: 淘汰 | N139: 淘汰 | O139: 2007-06-05 | P139: 5 | Q139: 13 | R139: 0 | S139: 50 | X139: 7028.02 | Y139: 6676.62 | Z139: 351.40 | AA139: 志高 | AB139: 注塑厂 | AC139: 较差 | AD139: 注塑车间 | AF139: C | AG139: M内核 | AJ139: 2022-01-05
A140: 138 | B140: 067846 | C140: C1588 | D140: A050601000389-R0 A050601000391-R0 | E140: 塑料 | F140: M114A电镀条左+右 | G140: M系列 | H140: =VLOOKUP(B140,[1]采购中心!$C$1:$I$65536,7,0) -> 否 | I140: =VLOOKUP(B140,[1]采购中心!$C$1:$J$65536,8,0) -> 海外营销 | J140: =VLOOKUP(B140,[1]采购中心!$C$1:$K$65536,9,0) -> 李景鹏 | M140: 淘汰 | N140: 淘汰 | O140: 2011-10-20 | P140: 5 | Q140: 9 | R140: 0 | S140: 50 | X140: 55094.98 | Y140: 52340.23 | Z140: 2754.75 | AA140: 志高 | AB140: 注塑厂 | AC140: 一般 | AD140: 注塑车间 | AF140: C | AG140: M内核 | AJ140: 2021-11-19
A141: 139 | B141: 067847 | C141: C1589 | D141: A050601000388-R0 | E141: 塑料 | F141: M114A上电镀条 | G141: M系列 | H141: =VLOOKUP(B141,[1]采购中心!$C$1:$I$65536,7,0) -> 否 | I141: =VLOOKUP(B141,[1]采购中心!$C$1:$J$65536,8,0) -> 海外营销 | J141: =VLOOKUP(B141,[1]采购中心!$C$1:$K$65536,9,0) -> 李景鹏 | M141: 淘汰 | N141: 淘汰 | O141: 2011-10-20 | P141: 5 | Q141: 9 | R141: 0 | S141: 50 | X141: 62807.03 | Y141: 59666.68 | Z141: 3140.35 | AA141: 志高 | AB141: 注塑厂 | AC141: 一般 | AD141: 注塑车间 | AF141: C | AG141: M内核 | AJ141: 2021-11-23
A142: 140 | B142: 068464 | C142: 1W060047A | D142: A050601001405-R0 | E142: 塑料 | F142: MC151款电镀条 | G142: M系列 | H142: =VLOOKUP(B142,[1]采购中心!$C$1:$I$65536,7,0) -> 否 | I142: =VLOOKUP(B142,[1]采购中心!$C$1:$J$65536,8,0) -> 海外营销 | J142: =VLOOKUP(B142,[1]采购中心!$C$1:$K$65536,9,0) -> 李景鹏 | M142: 淘汰 | N142: 淘汰 | O142: 2013年 | P142: 5 | Q142: 7 | R142: 0 | S142: 50 | X142: 29914.53 | Y142: 28418.80 | Z142: 1495.73 | AA142: 顺威 | AB142: 注塑厂 | AC142: 一般 | AD142: 注塑车间 | AF142: C | AG142: M内核 | AJ142: 2021-11-24
A143: 141 | B143: 068450 | C143: C1766 | D143: A050601001172-R0 | E143: 塑料 | F143: M双层导风条(通用) | G143: M系列 | M143: 淘汰 | N143: 淘汰 | O143: 2013-01-02 | P143: 5 | Q143: 7 | R143: 0 | S143: 50 | X143: 108608.24 | Y143: 103177.83 | Z143: 5430.41 | AA143: 志高 | AB143: 注塑厂 | AC143: 一般 | AD143: 注塑车间 | AF143: C | AG143: M内核 | AJ143: 2022-01-03
A144: 142 | B144: 062291 | C144: C1067 | D144: 391220252B | E144: 塑料 | F144: MVP93款镜片共用 | G144: M系列 | M144: 淘汰 | N144: 淘汰 | O144: 2007-04-02 | P144: 5 | Q144: 13 | R144: 0 | S144: 50 | X144: 13476.88 | Y144: 12803.04 | Z144: 673.84 | AA144: 志高 | AB144: 注塑厂 | AC144: 较差 | AD144: 注塑车间 | AE144: 已申请淘汰 | AF144: C | AG144: M内核 | AJ144: 2021-11-10 | AK144: =152/1000 -> 0.152
A145: 143 | B145: 067231 | C145: CG/A020410 | D145: 391990311R | E145: 塑料 | F145: 79款显示镜片 | G145: M系列 | H145: =VLOOKUP(B145,[1]采购中心!$C$1:$I$65536,7,0) -> 否 | I145: =VLOOKUP(B145,[1]采购中心!$C$1:$J$65536,8,0) -> 海外营销 | J145: =VLOOKUP(B145,[1]采购中心!$C$1:$K$65536,9,0) -> 李景鹏 | M145: 淘汰 | N145: 淘汰 | O145: 2010-06-24 | P145: 5 | Q145: 10 | R145: 0 | S145: 50 | X145: 25641.03 | Y145: 24358.98 | Z145: 1282.05 | AA145: 志高 | AB145: 注塑厂 | AC145: 一般 | AD145: 注塑车间 | AF145: C | AG145: M内核 | AJ145: 2021-12-06
A146: 144 | B146: 066821 | C146: C1438 | D146: 391220534R | E146: 塑料 | F146: 117款镜片 | G146: M系列 | H146: =VLOOKUP(B146,[1]采购中心!$C$1:$I$65536,7,0) -> 否 | I146: =VLOOKUP(B146,[1]采购中心!$C$1:$J$65536,8,0) -> 海外营销 | J146: =VLOOKUP(B146,[1]采购中心!$C$1:$K$65536,9,0) -> 李景鹏 | M146: 淘汰 | N146: 淘汰 | O146: 2010-08-16 | P146: 5 | Q146: 10 | R146: 0 | S146: 50 | X146: 10378.47 | Y146: 9859.55 | Z146: 518.92 | AA146: 志高 | AB146: 注塑厂 | AC146: 一般 | AD146: 注塑车间 | AE146: 已申请淘汰 | AF146: C | AG146: M内核 | AJ146: 2021-11-09
A147: 145 | B147: 063816 | C147: C1153 | D147: 391220281B P391220281 | E147: 塑料 | F147: 98款镜片（MVP通用） | G147: M系列 | H147: =VLOOKUP(B147,[1]采购中心!$C$1:$I$65536,7,0) -> 是 | I147: =VLOOKUP(B147,[1]采购中心!$C$1:$J$65536,8,0) -> 海外营销 | J147: =VLOOKUP(B147,[1]采购中心!$C$1:$K$65536,9,0) -> 李景鹏 | M147: 淘汰 | N147: 淘汰 | O147: 2008-08-05 | P147: 5 | Q147: 12 | R147: 0 | S147: 50 | X147: 20713.02 | Y147: 19677.37 | Z147: 1035.65 | AA147: 志高 | AB147: 注塑厂 | AC147: 较差 | AD147: 注塑车间 | AE147: 已申请淘汰 | AF147: C | AG147: M内核 | AJ147: 2021-11-09
A148: 146 | B148: 067323 | C148: K01557 | D148: 391220557R | E148: 塑料 | F148: 123款镜片 | G148: M系列 | H148: =VLOOKUP(B148,[1]采购中心!$C$1:$I$65536,7,0) -> 否 | I148: =VLOOKUP(B148,[1]采购中心!$C$1:$J$65536,8,0) -> 海外营销 | J148: =VLOOKUP(B148,[1]采购中心!$C$1:$K$65536,9,0) -> 李景鹏 | M148: 淘汰 | N148: 淘汰 | O148: 2010-10-16 | P148: 5 | Q148: 10 | R148: 0 | S148: 50 | X148: 11111.11 | Y148: 10555.55 | Z148: 555.56 | AA148: 科智 | AB148: 注塑厂 | AC148: 一般 | AD148: 注塑车间 | AE148: 已申请淘汰 | AF148: C | AG148: M内核 | AJ148: 2021-11-09
A149: 147 | B149: 061665 | C149: CG/A010507 | D149: 391220163R | E149: 塑料 | F149: 73款接收窗 | G149: M系列 | M149: 淘汰 | N149: 淘汰 | O149: 2007-08-05 | P149: 5 | Q149: 13 | R149: 0 | S149: 50 | X149: 13500 | Y149: 12825.00 | Z149: 675.00 | AA149: 诚丰 | AB149: 注塑厂 | AC149: 较差 | AD149: 注塑车间 | AF149: C | AG149: M内核 | AJ149: 2021-11-09
A150: 148 | B150: 064934 | C150: C1255 | D150: 391220339B | E150: 塑料 | F150: 105款显示镜片（通用） | G150: M系列 | H150: =VLOOKUP(B150,[1]采购中心!$C$1:$I$65536,7,0) -> 否 | I150: =VLOOKUP(B150,[1]采购中心!$C$1:$J$65536,8,0) -> 海外营销 | J150: =VLOOKUP(B150,[1]采购中心!$C$1:$K$65536,9,0) -> 李景鹏 | M150: 淘汰 | N150: 淘汰 | O150: 2009-06-30 | P150: 5 | Q150: 11 | R150: 0 | S150: 50 | X150: 10110.18 | Y150: 9604.67 | Z150: 505.51 | AA150: 志高 | AB150: 注塑厂 | AC150: 较差 | AD150: 注塑车间 | AE150: 已申请淘汰 | AF150: C | AG150: M内核 | AJ150: 2021-12-30
A151: 149 | B151: 066826 | C151: C1453 | D151: 391990317R | E151: 塑料 | F151: 116款镜片 | G151: M系列 | H151: =VLOOKUP(B151,[1]采购中心!$C$1:$I$65536,7,0) -> 否 | I151: =VLOOKUP(B151,[1]采购中心!$C$1:$J$65536,8,0) -> 海外营销 | J151: =VLOOKUP(B151,[1]采购中心!$C$1:$K$65536,9,0) -> 李景鹏 | M151: 淘汰 | N151: 淘汰 | O151: 2010-08-16 | P151: 5 | Q151: 10 | R151: 0 | S151: 50 | X151: 9143.57 | Y151: 8686.39 | Z151: 457.18 | AA151: 志高 | AB151: 注塑厂 | AC151: 一般 | AD151: 注塑车间 | AE151: 已申请淘汰 | AF151: C | AG151: M内核 | AJ151: 2021-11-09 | AK151: =107/1000 -> 0.107
A152: 150 | B152: 068677 | C152: K01759 | D152: A050601000794-R0 | E152: 塑料 | F152: M70134款装饰条 | G152: M系列 | H152: =VLOOKUP(B152,[1]采购中心!$C$1:$I$65536,7,0) -> 否 | I152: =VLOOKUP(B152,[1]采购中心!$C$1:$J$65536,8,0) -> 海外营销 | J152: =VLOOKUP(B152,[1]采购中心!$C$1:$K$65536,9,0) -> 李景鹏 | M152: 淘汰 | N152: 淘汰 | O152: 2012-09-25 | P152: 5 | Q152: 8 | R152: 0 | S152: 50 | X152: 34188.03 | Y152: 32478.63 | Z152: 1709.40 | AA152: 科智 | AB152: 注塑厂 | AC152: 一般 | AD152: 注塑车间 | AE152: 已申请淘汰 | AF152: C | AG152: M内核 | AJ152: 2021-12-20
A153: 151 | B153: 065012 | C153: CG/A040309 | D153: 391990298R | E153: 塑料 | F153: 108款镜片（MVP通用） | G153: M系列 | M153: 淘汰 | N153: 淘汰 | O153: 2009-07-20 | P153: 5 | Q153: 11 | R153: 0 | S153: 50 | X153: 12820.51 | Y153: 12179.48 | Z153: 641.03 | AA153: 诚丰 | AB153: 注塑厂 | AC153: 较差 | AD153: 注塑车间 | AE153: 已申请淘汰 | AF153: C | AG153: M内核 | AJ153: 2021-11-15
A154: 152 | B154: 067840 | C154: C1571 | D154: A050966000017-R0 | E154: 塑料 | F154: 124款导风条 | G154: M系列 | H154: =VLOOKUP(B154,[1]采购中心!$C$1:$I$65536,7,0) -> 否 | I154: =VLOOKUP(B154,[1]采购中心!$C$1:$J$65536,8,0) -> 国内营销 | J154: =VLOOKUP(B154,[1]采购中心!$C$1:$K$65536,9,0) -> 胡江冯 | M154: 淘汰 | N154: 淘汰 | O154: 2011-08-01 | P154: 5 | Q154: 9 | R154: 0 | S154: 50 | X154: 82283.35 | Y154: 78169.18 | Z154: 4114.17 | AA154: 志高 | AB154: 注塑厂 | AC154: 一般 | AD154: 注塑车间 | AF154: C | AG154: M内核 | AJ154: 2021-11-27
A155: 153 | B155: 068214 | C155: K01617 | D155: A050966000045-R0 | E155: 塑料 | F155: 127款导风条 | G155: M系列 | H155: =VLOOKUP(B155,[1]采购中心!$C$1:$I$65536,7,0) -> 否 | I155: =VLOOKUP(B155,[1]采购中心!$C$1:$J$65536,8,0) -> 国内营销 | J155: =VLOOKUP(B155,[1]采购中心!$C$1:$K$65536,9,0) -> 胡江冯 | M155: 淘汰 | N155: 淘汰 | O155: 2011-09-27 | P155: 5 | Q155: 9 | R155: 0 | S155: 50 | X155: 60085.47 | Y155: 57081.20 | Z155: 3004.27 | AA155: 科智 | AB155: 注塑厂 | AC155: 一般 | AD155: 注塑车间 | AF155: C | AG155: M内核 | AJ155: 2021-11-27
A156: 154 | B156: 068474 | C156: 1W060052A | D156: A050601001250-R0 | E156: 塑料 | F156: JC151款装饰条 | G156: J系列 | M156: 淘汰 | N156: 淘汰 | O156: 2013-01-01 | P156: 5 | Q156: 7 | R156: 0 | S156: 50 | X156: 38461.54 | Y156: 36538.46 | Z156: 1923.08 | AA156: 顺威 | AB156: 注塑厂 | AC156: 较好 | AD156: 注塑车间 | AF156: C | AG156: J内核 | AJ156: 2021-12-23
A157: 155 | B157: 068466 | C157: 1W060053A | D157: A050601001251-R0 | E157: 塑料 | F157: JC151款电镀条 | G157: J系列 | M157: 淘汰 | N157: 淘汰 | O157: 2013-01-01 | P157: 5 | Q157: 7 | R157: 0 | S157: 50 | X157: 29914.53 | Y157: 28418.80 | Z157: 1495.73 | AA157: 顺威 | AB157: 注塑厂 | AC157: 较好 | AD157: 注塑车间 | AF157: C | AG157: J内核 | AJ157: 2021-12-13
A158: 156 | B158: 068803 | C158: C1785 | D158: A050601001423-R0 A050601001138-R0 | E158: 塑料 | F158: J123面板体 | G158: J系列 | H158: =VLOOKUP(B158,[1]采购中心!$C$1:$I$65536,7,0) -> 否 | I158: =VLOOKUP(B158,[1]采购中心!$C$1:$J$65536,8,0) -> 海外营销 | J158: =VLOOKUP(B158,[1]采购中心!$C$1:$K$65536,9,0) -> 李景鹏 | M158: 淘汰 | N158: 淘汰 | O158: 2013-01-23 | P158: 5 | Q158: 7 | R158: 0 | S158: 50 | X158: 193562.98 | Y158: 183884.83 | Z158: 9678.15 | AA158: 志高 | AB158: 注塑厂 | AC158: 较好 | AD158: 注塑车间 | AF158: C | AG158: J内核 | AJ158: 2021-12-23
A159: 157 | B159: 068804 | C159: C1786 | D159: A050699000450-B0 A050601001139-R0 | E159: 塑料 | F159: J123款装饰条 | G159: J系列 | H159: =VLOOKUP(B159,[1]采购中心!$C$1:$I$65536,7,0) -> 否 | I159: =VLOOKUP(B159,[1]采购中心!$C$1:$J$65536,8,0) -> 海外营销 | J159: =VLOOKUP(B159,[1]采购中心!$C$1:$K$65536,9,0) -> 李景鹏 | M159: 淘汰 | N159: 淘汰 | O159: 2013-01-23 | P159: 5 | Q159: 7 | R159: 0 | S159: 50 | X159: 143948.47 | Y159: 136751.05 | Z159: 7197.42 | AA159: 志高 | AB159: 注塑厂 | AC159: 较好 | AD159: 注塑车间 | AF159: C | AG159: J内核 | AJ159: 2021-12-21
A160: 158 | B160: 067250 | C160: C1582 | D160: A050601001447-R0 A050601001046-R0 A050601000191-R0 | E160: 塑料 | F160: J108款面板架 | G160: J系列 | M160: 淘汰 | N160: 淘汰 | O160: 2011-08-15 | P160: 5 | Q160: 9 | R160: 0 | S160: 50 | X160: 195880.63 | Y160: 186086.60 | Z160: 9794.03 | AA160: 志高 | AB160: 注塑厂 | AC160: 一般 | AD160: 注塑车间 | AF160: C | AG160: J内核 | AJ160: 2021-12-21
A161: 159 | B161: 067251 | C161: C1583 | D161: A050601000545-R0 A050601000189-R0 | E161: 塑料 | F161: J108款装饰条 | G161: J系列 | M161: 淘汰 | N161: 淘汰 | O161: 2011-08-15 | P161: 5 | Q161: 9 | R161: 0 | S161: 50 | X161: 106023.07 | Y161: 100721.92 | Z161: 5301.15 | AA161: 志高 | AB161: 注塑厂 | AC161: 一般 | AD161: 注塑车间 | AF161: C | AG161: J内核 | AJ161: 2021-12-13
A162: 160 | B162: 068191 | C162: CG/A021311 | D162: A050601000542-R0 A050601000176-R0 | E162: 塑料 | F162: J104款面板 | G162: J系列 | M162: 淘汰 | N162: 淘汰 | O162: 2011-01-01 | P162: 5 | Q162: 9 | R162: 0 | S162: 50 | X162: 145299.15 | Y162: 138034.19 | Z162: 7264.96 | AA162: 诚丰 | AB162: 注塑厂 | AC162: 一般 | AD162: 注塑车间 | AF162: C | AG162: J内核 | AJ162: 2021-12-28
A163: 161 | B163: 068192 | C163: CG/A021411 | D163: A050601001424-R0 A050601000174-R0 | E163: 塑料 | F163: J104款装饰条 | G163: J系列 | M163: 淘汰 | N163: 淘汰 | O163: 2011-01-01 | P163: 5 | Q163: 9 | R163: 0 | S163: 50 | X163: 51282.05 | Y163: 48717.95 | Z163: 2564.10 | AA163: 诚丰 | AB163: 注塑厂 | AC163: 一般 | AD163: 注塑车间 | AF163: C | AG163: J内核 | AJ163: 2021-12-10
A164: 162 | B164: 0610094 | C164: BLS15037 | D164: A050601003122-R0 | E164: 塑料 | F164: JB164款面板 | G164: J系列 | H164: =VLOOKUP(B164,[1]采购中心!$C$1:$I$65536,7,0) -> 否 | I164: =VLOOKUP(B164,[1]采购中心!$C$1:$J$65536,8,0) -> 海外营销 | J164: =VLOOKUP(B164,[1]采购中心!$C$1:$K$65536,9,0) -> 李景鹏 | M164: 淘汰 | N164: 淘汰 | O164: 2015-03-07 | P164: 5 | Q164: 5 | R164: 0 | S164: 80 | X164: 273504.27 | Y164: 199202.08 | Z164: 74302.19 | AA164: 博路思 | AB164: 注塑厂 | AC164: 较好 | AD164: 注塑车间 | AF164: C | AG164: J内核 | AJ164: 2022-01-05 | AK164: =6800/1000 -> 6.8
A165: 163 | B165: 068205 | C165: 1W060012A | D165: A050601000699-R0 | E165: 塑料 | F165: J127款面板 | G165: J系列 | M165: 淘汰 | N165: 淘汰 | O165: 2012-07-18 | P165: 5 | Q165: 8 | R165: 0 | S165: 50 | X165: 126495.72 | Y165: 120170.93 | Z165: 6324.79 | AA165: 顺威 | AB165: 注塑厂 | AC165: 较好 | AD165: 注塑车间 | AF165: C | AG165: J内核 | AJ165: 2021-12-27
A166: 164 | B166: 068808 | C166: C1856 | D166: A050601001725-R0 | E166: 塑料 | F166: JB138款面板 | G166: J系列 | H166: =VLOOKUP(B166,[1]采购中心!$C$1:$I$65536,7,0) -> 否 | I166: =VLOOKUP(B166,[1]采购中心!$C$1:$J$65536,8,0) -> 海外营销 | J166: =VLOOKUP(B166,[1]采购中心!$C$1:$K$65536,9,0) -> 李景鹏 | M166: 淘汰 | N166: 淘汰 | O166: 2013-08-15 | P166: 5 | Q166: 7 | R166: 0 | S166: 50 | X166: 187631.27 | Y166: 178249.71 | Z166: 9381.56 | AA166: 志高 | AB166: 注塑厂 | AC166: 较好 | AD166: 注塑车间 | AF166: C | AG166: J内核 | AI166: 无编码，无法判断 | AJ166: 2021-12-24
A167: 165 | B167: 068798 | C167: C1780 | D167: A050601001438-R0 | E167: 塑料 | F167: J106款面板 | G167: J系列 | H167: =VLOOKUP(B167,[1]采购中心!$C$1:$I$65536,7,0) -> 否 | I167: =VLOOKUP(B167,[1]采购中心!$C$1:$J$65536,8,0) -> 海外营销 | J167: =VLOOKUP(B167,[1]采购中心!$C$1:$K$65536,9,0) -> 李景鹏 | M167: 淘汰 | N167: 淘汰 | O167: 2013-01-23 | P167: 5 | Q167: 7 | R167: 0 | S167: 50 | X167: 169068.56 | Y167: 160615.13 | Z167: 8453.43 | AA167: 志高 | AB167: 注塑厂 | AC167: 较好 | AD167: 注塑车间 | AF167: C | AG167: J内核 | AI167: 无编码，无法判断 | AJ167: 2021-12-23
A168: 166 | B168: 067249 | C168: C1581 | D168: A050601000541-R0 | E168: 塑料 | F168: J107款面板座 | G168: J系列 | H168: =VLOOKUP(B168,[1]采购中心!$C$1:$I$65536,7,0) -> 否 | I168: =VLOOKUP(B168,[1]采购中心!$C$1:$J$65536,8,0) -> 海外营销 | J168: =VLOOKUP(B168,[1]采购中心!$C$1:$K$65536,9,0) -> 李景鹏 | M168: 淘汰 | N168: 淘汰 | O168: 2011-08-15 | P168: 5 | Q168: 9 | R168: 0 | S168: 50 | X168: 185517.1 | Y168: 176241.24 | Z168: 9275.86 | AA168: 志高 | AB168: 注塑厂 | AC168: 一般 | AD168: 注塑车间 | AF168: C | AG168: J内核 | AI168: 无编码，无法判断 | AJ168: 2021-12-23
A169: 167 | B169: 067252 | C169: C1584 | D169: A050601000543-R0 | E169: 塑料 | F169: J115款面板 | G169: J系列 | M169: 淘汰 | N169: 淘汰 | O169: 2011-08-15 | P169: 5 | Q169: 9 | R169: 0 | S169: 50 | X169: 189894.82 | Y169: 180400.08 | Z169: 9494.74 | AA169: 志高 | AB169: 注塑厂 | AC169: 一般 | AD169: 注塑车间 | AF169: C | AG169: J内核 | AI169: 无编码，无法判断 | AJ169: 2021-12-24
A170: 168 | B170: 067253 | C170: C1585 | D170: A050601000188-R0 | E170: 塑料 | F170: J115款装饰板 | G170: J系列 | H170: =VLOOKUP(B170,[1]采购中心!$C$1:$I$65536,7,0) -> 否 | I170: =VLOOKUP(B170,[1]采购中心!$C$1:$J$65536,8,0) -> 海外营销 | J170: =VLOOKUP(B170,[1]采购中心!$C$1:$K$65536,9,0) -> 李景鹏 | M170: 淘汰 | N170: 淘汰 | O170: 2011-08-15 | P170: 5 | Q170: 9 | R170: 0 | S170: 50 | X170: 80288.54 | Y170: 76274.11 | Z170: 4014.43 | AA170: 志高 | AB170: 注塑厂 | AC170: 一般 | AD170: 注塑车间 | AF170: C | AG170: J内核 | AI170: 无编码，无法判断 | AJ170: 2021-12-20
A171: 169 | B171: 068799 | C171: C1781 | D171: A050601001422-R0 A050601001429-R0 | E171: 塑料 | F171: J118面板体 | G171: J系列 | H171: =VLOOKUP(B171,[1]采购中心!$C$1:$I$65536,7,0) -> 否 | I171: =VLOOKUP(B171,[1]采购中心!$C$1:$J$65536,8,0) -> 海外营销 | J171: =VLOOKUP(B171,[1]采购中心!$C$1:$K$65536,9,0) -> 李景鹏 | M171: 淘汰 | N171: 淘汰 | O171: 2013-01-23 | P171: 5 | Q171: 7 | R171: 0 | S171: 50 | X171: 176851.07 | Y171: 168008.52 | Z171: 8842.55 | AA171: 志高 | AB171: 注塑厂 | AC171: 较好 | AD171: 注塑车间 | AF171: C | AG171: J内核 | AJ171: 2021-12-23
A172: 170 | B172: 068806 | C172: C1854 | D172: A050938001543-R0 | E172: 塑料 | F172: JB137款面板 | G172: J系列 | H172: =VLOOKUP(B172,[1]采购中心!$C$1:$I$65536,7,0) -> 否 | I172: =VLOOKUP(B172,[1]采购中心!$C$1:$J$65536,8,0) -> 海外营销 | J172: =VLOOKUP(B172,[1]采购中心!$C$1:$K$65536,9,0) -> 李景鹏 | M172: 淘汰 | N172: 淘汰 | O172: 2013-08-02 | P172: 5 | Q172: 7 | R172: 0 | S172: 50 | X172: 151015.5 | Y172: 143464.72 | Z172: 7550.78 | AA172: 志高 | AB172: 注塑厂 | AC172: 较好 | AD172: 注塑车间 | AF172: C | AG172: J内核 | AJ172: 2021-12-24
A173: 171 | B173: 068807 | C173: C1855 | D173: A050601001718-R0 | E173: 塑料 | F173: JB137款装饰条 | G173: J系列 | H173: =VLOOKUP(B173,[1]采购中心!$C$1:$I$65536,7,0) -> 否 | I173: =VLOOKUP(B173,[1]采购中心!$C$1:$J$65536,8,0) -> 海外营销 | J173: =VLOOKUP(B173,[1]采购中心!$C$1:$K$65536,9,0) -> 李景鹏 | M173: 淘汰 | N173: 淘汰 | O173: 2013-08-02 | P173: 5 | Q173: 7 | R173: 0 | S173: 50 | X173: 66898.22 | Y173: 63553.31 | Z173: 3344.91 | AA173: 志高 | AB173: 注塑厂 | AC173: 较好 | AD173: 注塑车间 | AF173: C | AG173: J内核 | AJ173: 2021-12-18
A174: 172 | B174: 068210 | C174: K01742 | D174: A050601000692-R0 | E174: 塑料 | F174: J132款装饰板 | G174: J系列 | H174: =VLOOKUP(B174,[1]采购中心!$C$1:$I$65536,7,0) -> 否 | I174: =VLOOKUP(B174,[1]采购中心!$C$1:$J$65536,8,0) -> 海外营销 | J174: =VLOOKUP(B174,[1]采购中心!$C$1:$K$65536,9,0) -> 李景鹏 | M174: 淘汰 | N174: 淘汰 | O174: 2012-09-22 | P174: 5 | Q174: 8 | R174: 0 | S174: 50 | X174: 76923.08 | Y174: 73076.93 | Z174: 3846.15 | AA174: 科智 | AB174: 注塑厂 | AC174: 较好 | AD174: 注塑车间 | AF174: C | AG174: J内核 | AJ174: 2021-12-02
A175: 173 | B175: 068354 | C175: 1W060041A | D175: A050601001143-R0 | E175: 塑料 | F175: 53号显示盒 | G175: J系列 | M175: 淘汰 | N175: 淘汰 | O175: 2013-03-28 | P175: 5 | Q175: 7 | R175: 0 | S175: 50 | X175: 103418.8 | Y175: =X175-Z175 -> 98247.86 | Z175: 5170.94 | AA175: 顺威 | AB175: 注塑厂 | AC175: 较好 | AD175: 注塑车间 | AE175: 没生产过 | AF175: C | AG175: J系列 | AI175: 产品类型：C | AJ175: 2021-12-07
A176: 174 | B176: 068683 | C176: NY13026 | D176: A050601001159-R0 | E176: 塑料 | F176: J139面板 | G176: J系列 | H176: =VLOOKUP(B176,[1]采购中心!$C$1:$I$65536,7,0) -> 否 | I176: =VLOOKUP(B176,[1]采购中心!$C$1:$J$65536,8,0) -> 海外营销 | J176: =VLOOKUP(B176,[1]采购中心!$C$1:$K$65536,9,0) -> 李景鹏 | M176: 淘汰 | N176: 淘汰 | O176: 2013-03-26 | P176: 5 | Q176: 7 | R176: 0 | S176: 50 | X176: 169230.76 | Y176: 160769.22 | Z176: 8461.54 | AA176: 宁一 | AB176: 注塑厂 | AC176: 较好 | AD176: 注塑车间 | AF176: C | AG176: J内核 | AJ176: 2021-12-23
A177: 175 | B177: 068355 | C177: 1W060040A | D177: A050601001142-R0 | E177: 塑料 | F177: J142款装饰条 | G177: J系列 | M177: 淘汰 | N177: 淘汰 | O177: 2013-03-28 | P177: 5 | Q177: 7 | R177: 0 | S177: 50 | X177: 85897.44 | Y177: 81602.57 | Z177: 4294.87 | AA177: 顺威 | AB177: 注塑厂 | AC177: 较好 | AD177: 注塑车间 | AF177: C | AG177: J内核 | AJ177: 2021-12-08 | AK177: 1.325
A178: 176 | B178: 068708 | C178: NY13080 | D178: A050601001337-R0 | E178: 塑料 | F178: 志高JB149装饰条 | G178: J系列 | M178: 淘汰 | N178: 淘汰 | O178: 2013-07-25 | P178: 5 | Q178: 7 | R178: 0 | S178: 50 | X178: 64102.57 | Y178: 60897.44 | Z178: 3205.13 | AA178: 宁一 | AB178: 注塑厂 | AC178: 较好 | AD178: 注塑车间 | AF178: C | AG178: J内核 | AJ178: 2021-12-14
A179: 177 | B179: 068209 | C179: K01741 | D179: A050601000691-R0 | E179: 塑料 | F179: J132款面板体 | G179: J系列 | H179: =VLOOKUP(B179,[1]采购中心!$C$1:$I$65536,7,0) -> 否 | I179: =VLOOKUP(B179,[1]采购中心!$C$1:$J$65536,8,0) -> 海外营销 | J179: =VLOOKUP(B179,[1]采购中心!$C$1:$K$65536,9,0) -> 李景鹏 | M179: 淘汰 | N179: 淘汰 | O179: 2012-09-22 | P179: 5 | Q179: 8 | R179: 0 | S179: 50 | X179: 162393.16 | Y179: 154273.50 | Z179: 8119.66 | AA179: 科智 | AB179: 注塑厂 | AC179: 较好 | AD179: 注塑车间 | AF179: C | AG179: J内核 | AJ179: 2021-12-24
A180: 178 | B180: 068801 | C180: C1783 | D180: A050601001419-R0 | E180: 塑料 | F180: J119面板体 | G180: J系列 | H180: =VLOOKUP(B180,[1]采购中心!$C$1:$I$65536,7,0) -> 否 | I180: =VLOOKUP(B180,[1]采购中心!$C$1:$J$65536,8,0) -> 海外营销 | J180: =VLOOKUP(B180,[1]采购中心!$C$1:$K$65536,9,0) -> 李景鹏 | M180: 淘汰 | N180: 淘汰 | O180: 2013-01-23 | P180: 5 | Q180: 7 | R180: 0 | S180: 50 | X180: 194570.04 | Y180: 184841.54 | Z180: 9728.50 | AA180: 志高 | AB180: 注塑厂 | AC180: 较好 | AD180: 注塑车间 | AF180: C | AG180: J内核 | AI180: 无编码，无法判断 | AJ180: 2021-12-22
A181: 179 | B181: 068800 | C181: C1782 | D181: A050601001190-R0 | E181: 塑料 | F181: J118显示镜片 | G181: J系列 | H181: =VLOOKUP(B181,[1]采购中心!$C$1:$I$65536,7,0) -> 否 | I181: =VLOOKUP(B181,[1]采购中心!$C$1:$J$65536,8,0) -> 海外营销 | J181: =VLOOKUP(B181,[1]采购中心!$C$1:$K$65536,9,0) -> 李景鹏 | M181: 淘汰 | N181: 淘汰 | O181: 2013-01-23 | P181: 5 | Q181: 7 | R181: 0 | S181: 50 | X181: 10871.66 | Y181: 10328.08 | Z181: 543.58 | AA181: 志高 | AB181: 注塑厂 | AC181: 较好 | AD181: 注塑车间 | AF181: C | AG181: J内核 | AJ181: 2021-12-06
A182: 180 | B182: 068802 | C182: C1784 | D182: A050601001189-R0 | E182: 塑料 | F182: J119装饰条 | G182: J系列 | M182: 淘汰 | N182: 淘汰 | O182: 2013-01-23 | P182: 5 | Q182: 7 | R182: 0 | S182: 50 | X182: 17075.46 | Y182: 16221.69 | Z182: 853.77 | AA182: 志高 | AB182: 注塑厂 | AC182: 较好 | AD182: 注塑车间 | AF182: C | AG182: J内核 | AI182: 无编码，无法判断 | AJ182: 2021-12-30
A183: 181 | B183: 068356 | C183: 1W060039A | D183: A050601001464-R0 | E183: 塑料 | F183: J142款面板 | G183: J系列 | M183: 淘汰 | N183: 淘汰 | O183: 2013-01-21 | P183: 5 | Q183: 7 | R183: 0 | S183: 50 | X183: 85897.44 | Y183: 81602.57 | Z183: 4294.87 | AA183: 顺威 | AB183: 注塑厂 | AC183: 较好 | AD183: 注塑车间 | AF183: C | AG183: J内核 | AJ183: 2021-12-25
A184: 182 | B184: 068792 | C184: CG/A040412 | D184: A050966000011-R0 | E184: 塑料 | F184: 51J导风条B模 | G184: J系列 | M184: 淘汰 | N184: 淘汰 | O184: 2013-01-11 | P184: 5 | Q184: 7 | R184: 0 | S184: 50 | X184: 102564.1 | Y184: 97435.89 | Z184: 5128.21 | AA184: 诚丰 | AB184: 注塑厂 | AC184: 较好 | AD184: 注塑车间 | AF184: C | AG184: J内核 | AI184: 无编码，无法判断 | AJ184: 2021-11-29
A185: 183 | B185: 068409 | C185: C1742 | D185: A050601002626-R0 | E185: 塑料 | F185: 136款装饰板 | G185: P系列 | H185: 否 | I185: 海外营销 | J185: 李景鹏 | K185: 是 | L185: 是 | M185: 保留 | N185: 保留 | O185: 2013-05-19 | P185: 5 | Q185: 7 | R185: 0 | S185: 50 | U185: 1368 | X185: 28589.48 | Y185: 27160.01 | Z185: 1429.47 | AA185: 模具厂 | AB185: 注塑厂 | AC185: 一般 | AD185: 注塑车间 | AE185: 已申请淘汰 | AF185: C | AG185: P内核 | AJ185: 2021-12-07
A186: 184 | B186: 069628 | C186: C1578 | D186: A050961000017-R0 A050601000157-R0 A050601000508-R0 | E186: 塑料 | F186: 124款中框 | G186: P系列 | H186: 是 | I186: 海外营销 | J186: 李景鹏 | K186: 否 | L186: 是 | M186: 保留 | N186: 保留 | O186: 2011-01-04 | P186: 5 | Q186: 9 | R186: 0 | S186: 50 | U186: 1248 | X186: 565965.95 | Y186: 474939.89 | Z186: 91026.06 | AA186: 模具厂 | AB186: 注塑厂 | AC186: 较差 | AD186: 注塑车间 | AE186: 已申请淘汰 | AF186: C | AG186: P内核 | AJ186: 2021-12-25
A187: 185 | B187: 069627 | C187: C1577 | D187: A050601000549-R0 | E187: 塑料 | F187: 124款面板 | G187: P系列 | H187: 否 | I187: 海外营销 | J187: 李景鹏 | K187: 否 | L187: 是 | M187: 保留 | N187: 淘汰 | O187: 2011-05-30 | P187: 5 | Q187: 9 | R187: 0 | S187: 50 | U187: 1310 | X187: 226273.91 | Y187: 189881.51 | Z187: 36392.40 | AA187: 模具厂 | AB187: 注塑厂 | AC187: 较差 | AD187: 注塑车间 | AE187: 已申请淘汰 | AF187: C | AG187: P内核 | AJ187: 2021-11-12
A188: 186 | B188: 069630 | C188: C1580 | D188: A050601000158-R0 | E188: 塑料 | F188: 124款导风条 | G188: P系列 | H188: 是 | I188: 海外营销 | J188: 李景鹏 | K188: 否 | L188: 是 | M188: 保留 | N188: 保留 | O188: 2008-01-14 | P188: 5 | Q188: 12 | R188: 0 | S188: 50 | U188: 3142 | X188: 167517.19 | Y188: 140574.55 | Z188: 26942.64 | AA188: 模具厂 | AB188: 注塑厂 | AC188: 较差 | AD188: 注塑车间 | AE188: 已申请淘汰 | AF188: C | AG188: P内核 | AJ188: 2021-12-27
A189: 187 | B189: 067269 | C189: C1515 | D189: A050961000046-R0 | E189: 塑料 | F189: 导风条(C模) | G189: P系列 | M189: 保留 | N189: 保留 | O189: 2011-03-25 | P189: 5 | Q189: 9 | R189: 0 | S189: 50 | X189: 139633.95 | Y189: 132652.25 | Z189: 6981.70 | AA189: 志高 | AB189: 注塑厂 | AC189: 一般 | AD189: 注塑车间 | AE189: 多年未生产 | AF189: C | AG189: P内核 | AJ189: 2022-01-11
A190: 188 | B190: 067853 | C190: C1595 | D190: A050601000777-R0 | E190: 塑料 | F190: P123装饰条+显示镜片B模 | G190: P系列 | H190: =VLOOKUP(B190,[1]采购中心!$C$1:$I$65536,7,0) -> 否 | I190: =VLOOKUP(B190,[1]采购中心!$C$1:$J$65536,8,0) -> 采购 | J190: =VLOOKUP(B190,[1]采购中心!$C$1:$K$65536,9,0) -> / | M190: 保留 | N190: 保留 | O190: 2011-11-03 | P190: 5 | Q190: 9 | R190: 0 | S190: 50 | X190: 95232.78 | Y190: 90471.14 | Z190: 4761.64 | AA190: 志高 | AB190: 注塑厂 | AC190: 一般 | AD190: 注塑车间 | AE190: 多年未生产 | AF190: C | AG190: P内核 | AJ190: 2021-11-12
A191: 189 | B191: 067848 | C191: C1590 | D191: A050601000306-R0 A050601000307-R0 | E191: 塑料 | F191: P114A电镀条左+右 | G191: P系列 | H191: =VLOOKUP(B191,[1]采购中心!$C$1:$I$65536,7,0) -> 否 | I191: =VLOOKUP(B191,[1]采购中心!$C$1:$J$65536,8,0) -> 海外营销 | J191: =VLOOKUP(B191,[1]采购中心!$C$1:$K$65536,9,0) -> 李景鹏 | M191: 保留 | N191: 保留 | O191: 2011-10-20 | P191: 5 | Q191: 9 | R191: 0 | S191: 50 | X191: 85458.17 | Y191: 81185.26 | Z191: 4272.91 | AA191: 志高 | AB191: 注塑厂 | AC191: 一般 | AD191: 注塑车间 | AE191: 多年未生产 | AF191: C | AG191: P内核 | AJ191: 2021-11-22
A192: 190 | B192: 067849 | C192: C1591 | D192: A050601000308-R0 | E192: 塑料 | F192: P114B上电镀条 | G192: P系列 | H192: =VLOOKUP(B192,[1]采购中心!$C$1:$I$65536,7,0) -> 否 | I192: =VLOOKUP(B192,[1]采购中心!$C$1:$J$65536,8,0) -> 海外营销 | J192: =VLOOKUP(B192,[1]采购中心!$C$1:$K$65536,9,0) -> 李景鹏 | M192: 保留 | N192: 保留 | O192: 2011-10-20 | P192: 5 | Q192: 9 | R192: 0 | S192: 50 | X192: 38943.2 | Y192: 36996.04 | Z192: 1947.16 | AA192: 志高 | AB192: 注塑厂 | AC192: 一般 | AD192: 注塑车间 | AE192: 多年未生产 | AF192: C | AG192: P内核 | AJ192: 2021-12-01
A193: 191 | B193: 068441 | C193: C1682 | D193: A050961000046-R0 | E193: 塑料 | F193: P导风条D模 | G193: P内核 | M193: 保留 | N193: 保留 | O193: 2012-06-15 | P193: 5 | Q193: 8 | R193: 0 | S193: 50 | X193: 115248.63 | Y193: 109486.20 | Z193: 5762.43 | AA193: 志高 | AB193: 注塑厂 | AC193: 一般 | AD193: 注塑车间 | AE193: 多年未生产 | AF193: C | AG193: P内核 | AJ193: 2021-12-30
A194: 192 | B194: 068679 | C194: K01761 | D194: A050601000777-R0 | E194: 塑料 | F194: P134款装饰条 | G194: P系列 | H194: =VLOOKUP(B194,[1]采购中心!$C$1:$I$65536,7,0) -> 否 | I194: =VLOOKUP(B194,[1]采购中心!$C$1:$J$65536,8,0) -> 海外营销 | J194: =VLOOKUP(B194,[1]采购中心!$C$1:$K$65536,9,0) -> 李景鹏 | M194: 保留 | N194: 保留 | O194: 2012-09-26 | P194: 5 | Q194: 8 | R194: 0 | S194: 50 | X194: 42735.04 | Y194: 40598.29 | Z194: 2136.75 | AA194: 科智 | AB194: 注塑厂 | AC194: 一般 | AD194: 注塑车间 | AE194: 已申请淘汰 | AF194: C | AG194: P内核 | AJ194: 2021-11-15 | AK194: 0.94
A195: 193 | B195: 062421 | C195: C1110 | D195: 391190018R | E195: 塑料 | F195: P系列轴套 | G195: P系列 | H195: =VLOOKUP(B195,[1]采购中心!$C$1:$I$65536,7,0) -> 否 | I195: =VLOOKUP(B195,[1]采购中心!$C$1:$J$65536,8,0) -> 海外营销 | J195: =VLOOKUP(B195,[1]采购中心!$C$1:$K$65536,9,0) -> 李景鹏 | M195: 保留 | N195: 保留 | O195: 2007-02-15 | P195: 5 | Q195: 13 | R195: 0 | S195: 50 | X195: 8425.32 | Y195: 8004.05 | Z195: 421.27 | AA195: 志高 | AB195: 注塑厂 | AC195: 较差 | AD195: 注塑车间 | AE195: 多年未生产 | AF195: C | AG195: P内核 | AJ195: 2021-11-11
A196: 194 | B196: 069355 | C196: M1403007 | D196: A050601002213-R0 | E196: 塑料 | F196: X151款装饰条 | G196: X系列 | H196: =VLOOKUP(B196,[1]采购中心!$C$1:$I$65536,7,0) -> 否 | I196: =VLOOKUP(B196,[1]采购中心!$C$1:$J$65536,8,0) -> 海外营销 | J196: =VLOOKUP(B196,[1]采购中心!$C$1:$K$65536,9,0) -> 李景鹏 | M196: 保留 | N196: 保留 | O196: 2014-03-01 | P196: 5 | Q196: 6 | R196: 0 | S196: 80 | X196: 42735.04 | Y196: 38568.48 | Z196: 4166.56 | AA196: 迅兴 | AB196: 注塑厂 | AC196: 较好 | AD196: 注塑车间 | AF196: C | AG196: X内核 | AH196: 技术确认为C类10.15 | AI196: 无编码，无法判断 | AJ196: 2021-12-23
A197: 195 | B197: 069357 | C197: M1403008 | D197: A050601002212-R0 | E197: 塑料 | F197: X151款电镀条 | G197: X系列 | H197: =VLOOKUP(B197,[1]采购中心!$C$1:$I$65536,7,0) -> 否 | I197: =VLOOKUP(B197,[1]采购中心!$C$1:$J$65536,8,0) -> 海外营销 | J197: =VLOOKUP(B197,[1]采购中心!$C$1:$K$65536,9,0) -> 李景鹏 | M197: 保留 | N197: 保留 | O197: 2014-03-01 | P197: 5 | Q197: 6 | R197: 0 | S197: 80 | X197: 25641.03 | Y197: 23140.86 | Z197: 2500.17 | AA197: 迅兴 | AB197: 注塑厂 | AC197: 较好 | AD197: 注塑车间 | AF197: C | AG197: X内核 | AH197: 技术确认为C类10.15 | AI197: 无编码，无法判断 | AJ197: 2022-01-04
A198: 196 | B198: 069356 | C198: M1403005 | D198: A050601002374-R0 | E198: 塑料 | F198: X115款装饰条 | G198: X系列 | H198: =VLOOKUP(B198,[1]采购中心!$C$1:$I$65536,7,0) -> 否 | I198: =VLOOKUP(B198,[1]采购中心!$C$1:$J$65536,8,0) -> 海外营销 | J198: =VLOOKUP(B198,[1]采购中心!$C$1:$K$65536,9,0) -> 李景鹏 | M198: 保留 | N198: 保留 | O198: 2014-03-01 | P198: 5 | Q198: 6 | R198: 0 | S198: 80 | X198: 136752.14 | Y198: 123418.68 | Z198: 13333.46 | AA198: 迅兴 | AB198: 注塑厂 | AC198: 较好 | AD198: 注塑车间 | AF198: C | AG198: X内核 | AH198: 技术确认为C类10.15 | AI198: 无编码，无法判断 | AJ198: 2021-12-31
A199: 197 | B199: 067255 | C199: C1397 | D199: A050601001462-R0 | E199: 塑料 | F199: X104款款装饰条 | G199: X系列 | H199: =VLOOKUP(B199,[1]采购中心!$C$1:$I$65536,7,0) -> 否 | I199: =VLOOKUP(B199,[1]采购中心!$C$1:$J$65536,8,0) -> 海外营销 | J199: =VLOOKUP(B199,[1]采购中心!$C$1:$K$65536,9,0) -> 李景鹏 | M199: 保留 | N199: 保留 | O199: 2010-07-01 | P199: 5 | Q199: 10 | R199: 0 | S199: 50 | X199: 154388.3 | Y199: 146668.88 | Z199: 7719.42 | AA199: 志高 | AB199: 注塑厂 | AC199: 一般 | AD199: 注塑车间 | AF199: C | AG199: X内核 | AJ199: 2021-12-28
A200: 198 | B200: 069053 | C200: CG/A020713 | D200: A050601001476-R0 | E200: 塑料 | F200: X123款装饰条 | G200: X系列 | M200: 保留 | N200: 保留 | O200: 2013-06-30 | P200: 5 | Q200: 7 | R200: 0 | S200: 50 | X200: 91623.93 | Y200: 87042.73 | Z200: 4581.20 | AA200: 诚丰 | AB200: 注塑厂 | AC200: 较好 | AD200: 注塑车间 | AF200: C | AG200: X内核 | AJ200: 2021-12-07
... 539 more rows
